{"text_format":"1","workbook":"xlsx","n_sheets":3,"sheets":["Ark1","Ark2","Ark3"],"not_rendered":{"charts":0,"images":77,"macros":1,"external_links":0,"defined_names":4,"comments":0,"pivot_tables":0},"unopened":[],"bounds":{"document_bytes":16777216,"sheet_cells":100000,"rows_first":2000,"rows_last":500,"rows_between":2000,"halvings":0,"cell_chars":16384,"cell_head_chars":4096},"cells_cut":0,"cells_raw":0,"read":"whole","date_system":"1900"}

{"sheet":"Ark1","index":0,"n_rows":330,"n_cols":99,"rows_kept":330,"cut":false,"hidden":false,"merged":[[48,78,53,78],[45,0,45,5],[53,12,53,22]]}
[null,"   ","   De  danske Urtesvirrefluer, Cheilosia (Diptera: Syrphidae)"]
[null,null,null,null,null,null,null,null,null,null,null,null,null,"Bent Haagen Petersen"]
[null,null,null,null,null,null,null,null,null,"  HUNNER",null,null,null,null,null,"Øjne bredt adskilte"]
[]
["Urtesvirrefluerne er med 37 danske arter vor artsrigeste svirreflueslægt. De fleste er sorte. Nogle få har gullig el-"]
["ler rødgul behåring. En enkelt art, C.illustrata, er mere broget og har en mørk plet på vingerne. Den og de øvrige ",null,null,null,null,null,null,null,null,null,null,null,null,null,null,null,null,null,null,null,null,null,null,null,null,null,null,null,null,null,null,null,null,null,null,null,null,null,null,null,null,null,null,null,null,null,null,null,null,null,null,null,null,null,null,null,null,null,null,null,null,null,null,null,null,null,null,1]
["arter i slægten kan adskilles fra alle andre svirrefluer ved at have en mere eller mindre bred øjensøm. Fra slæg-"]
["ter i underfamilien Syrphinae adskiller Cheilosia sig ved at have skuldrene synlige. Hanner og hunner har i man-",null,null,null,null,null,null,null,null,null,null,null,null,null,null,null,null,null,null,null,null,null,null,null,null,null,null,null,null,null,null,null,null,null,0]
["ge tilfælde ikke samme kendetegn, og det er derfor hensgtsmæssigt at opdele i to nøgler med bedre beskrivelser ",null,null,null,null,null,null,null,null,null,null,null,null,null,null,null,null,null,null,null,null,null,null,null,null,null,null,null,null,null,null,null,null,null,0]
["af de to køn. Hanner har øjnene sammenstødende. Hunner har øjnene bredt adskilte."]
["En række arter kan bestemmes til art alene med nøglekendetegnene. Andre bestemmelser forudsætter, at man ",null,null,null,null,null,null,null,null,null,null,null,null,null,null,null,null,null,null,null,null,null,null,null,null,null,null,null,null,null,null,null,null,null,0]
["også ser kendetegn i artsbeskrivelserne eller, at man undersøger fluen under stereolup, for eksempel for at se  ",null,null,null,null,null,null,null,null,null,null,null,null,null,null,null,null,null,null,null,null,null,null,null,null,null,null,null,null,null,null,null,null,null,0]
["kendetegn på bagkroppens underside. Flere af arterne kan være vanskelige at bestemme efter billeder."]
["Fra tre arter er der i nyere tid udskilt en tvilligart. Disse arter er ikke medtaget i artsoversigten. Fra C. urbana",null,null,null,null,null,null,null,null,null,null,null,null,null,null,null,null,null,null,null,null,null,null,null,null,null,null,null,null,null,null,null,null,null,0]
["er  udskilt C. psilophthalma. Bestemmelse forudsætter undersøgelse af farven på føddernes kløer. Fra C. albi-",null,null,null,null,null,null,null,null,null,null,null,null,null,null,null,null,null,null,null,null,null,null,null,null,null,null,null,null,null,null,null,null,null,0]
["tarsis er udskilt C. ranunculi. Indtil videre kan de to arters hunner ikke adskilles.  Fra C. albipila er udskilt",null,null,null,null,null,null,null,null,null,null,null,null,null,null,null,null,null,null,null,null,null,null,null,null,null,null,null,null,null,null,null,null,null,0]
["C. nebulosa, der kan være meget vanskelig at bestemme. Den må man læse om i litteraturen."]
[null,null,null,null,null,null,null,null,null,null,null,null,null,null,null,null,null,null,null,null,null,null,null,null,null,null,null,null,null,null,null,null,null,null,0]
[null,null,null,null,null,null,null,null,null,null,null,null,null,null,null,null,null,null,null,null,null,null,null,null,null,null,null,null,null,null,null,null,null,null,0]
[]
[null,null,null,null,null,null,null,null,null,null,null,null,null,null,null,null,null,null,null,null,null,null,null,null,null,null,null,null,null,null,null,null,null,null,0]
["Sådan bruger man bedst nøglen.",null,null,null,null,null,null,null,null,null,null,null,null,null,null,null,null,null,null,null,null,null,null,null,null,null,null,null,null,null,null,null,null,null,0]
["Nøglen er specielt konstrueret til brug ved bestemmelse af fluer på billeder. Den bruger samme kendetegn som"]
["almindelige nøgler. Blot har nøglen her den forskel, at man ikke behøver at gå frem i en given rækkefølge, som",null,null,null,null,null,null,null,null,null,null,null,null,null,null,null,null,null,null,null,null,null,null,null,null,null,null,null,null,null,null,null,null,null,0]
["man jo ellers skal.  Det er en fordel, da der på billeder ofte er kendetegn, der ikke kan ses, og da ville man med",null,null,null,null,null,null,null,null,null,null,null,null,null,null,null,null,null,null,null,null,null,null,null,null,null,null,null,null,null,null,null,null,null,0]
["en almindelig nøgle gå i stå. Det er altid bedst at starte med sådanne kendetegn, som ses meget tydeligt. ",null,null,null,null,null,null,null,null,null,null,null,null,null,null,null,null,null,null,null,null,null,null,null,null,null,null,null,null,null,null,null,null,null,0]
["Kendetegn, som ikke er synlige på billedet, springer man over, men der skal helst ikke være for mange af dem.",null,null,null,null,null,null,null,null,null,null,null,null,null,null,null,null,null,null,null,null,null,null,null,null,null,null,null,null,null,null,null,null,null,0]
["Hver gang, man har klikket ved et kendetegn, vises et billede af kendetegnet, og arter, som ikke har dette ken-"]
["detegn, forsvinder fra artsoversigten. Klikker man ved et kendetegn, som ikke passer med nøglens, skriver nøg-",null,null,null,null,null,null,null,null,null,null,null,null,null,null,null,null,null,null,null,null,null,null,null,null,null,null,null,null,null,null,null,null,null,0]
["len, at bestemmelse da næppe vil være mulig.",null,null,null,null,null,null,null,null,null,null,null,null,null,null,null,null,null,null,null,null,null,null,null,null,null,null,null,null,null,null,null,null,null,0]
[]
["Når der kun er 1 artsnavn tilbage på oversigten, skriver nøglen, at fluen nu er bestemt. Dens navn vises i feltet ",null,null,null,null,null,null,null,null,null,null,null,null,null,null,null,null,null,null,null,null,null,null,null,null,null,null,null,null,null,null,null,null,null,0]
["øverst på skemaet. Derefter bør man i oversigten klikke ved fluens navn, hvorefter et billede af arten og en be-",null,null,null,null,null,null,null,null,null,null,null,null,null,null,null,null,null,null,null,null,null,null,null,null,null,null,null,null,null,null,null,null,null,0]
["skrivelse vises. Det er vigtigt at læse denne. Hvis man har benyttet observationstidspunktt som nøglekarakter,"]
["bør man så slå den fra for at se, om andre arter med anden flyvetid også var muligheder. Nøglen gemmer også "]
["kendetegn for sådanne arter.",null,null,null,null,null,null,null,null,null,null,null,null,null,null,null,null,null,null,null,null,null,null,null,null,null,null,null,null,null,null,null,null,null,null,null,null,null,null,null,null,null,null,null,null,null,null,null,null,null,null,null,null,null,null,null,null,null,null,null,null,null,null,null,null,null,null,null,null,null,null,null,null,null,null,null,4]
[null,null,null,null,null,null,null,null,null,null,null,null,null,null,null,null,null,null,null,null,null,null,null,null,null,null,null,null,null,null,null,null,null,null,null,null,{"$f":"SUM(BY36)","v":4}]
["Når man er sikker på sin bestemmelse, kan man indrapportere observationen. Er man ikke særlig øvet i at be-"]
["stemme fluer, bør man sikre sig ved først  at spørge i Fugle og Naturs Tovinge-forum."]
[]
["Jeg takker de mange på Fugle & Natur, som har givet mig tilladelse til at bruge deres billeder til nøglerne."]
[]
[]
["Nøgle til de danske Urtesvirrefluer, Cheilosia, (Diptera: Syrphidae)"]
[null,null,null,null,null,null,null,null,"MAR",null,null,"APR",null,null,"MAJ",null," ","JUN",null,null,"JUL",null,null,"AUG",null,null,"SEP",null,null,"OKT",null,"                       HUNNER "," "]
["Vælg  nr. fra obs.tidslinien",null,null,null,null,null,null,1,2,3,4,5,6,7,8,9,10,11,12,13,14,15,16,17,18,19,20,21,22,23,24,"                         Øjne bredt adskilte "," "," "]
[null,null,null,null,null,null,null,null," ",null," ",null,null,null,null,"    "," ",null,null,null,null," "," "," "," "," "," "," "," "," "," "," ",null,null,null,null,null,null,null,null,null,null,null,null,null,null,"*","*",null,"*",null,"*",null,null,"*",null,null,null,"*",null,null,null,"*",null,null,"*",null,"*",null,"*",null,"*",null,"*",null,"*",null,null,null,null,null,null,null,null,"tom"]
[null,null,"HUNNER",null,null,null,null,null,null,null,null,null,null,null,null,null,"Cheilosia",null,null,null,null,{"$f":"IF(AL51=1,VLOOKUP(AL50,AL52:AM85,2,FALSE),\"   sp.\")","v":"pagana"},null,null,null,null,null,null,null,null,null,"  Over nøglen kan du læse om Cheilosia",null,null,null,null,null,{"$f":"SUM(AU48+AV48+AX48+AZ48+BC48+BG48+BK48+BN48+BP48+BR48+BT48+BV48+BX48)","v":4},"Afkrydsede felter *",null,null,null,null,null,null,null,{"$f":"IF(J49=0,0,1)","v":1},{"$f":"IF(AW48=0,0,1)","v":1},{"$f":"+AV49+AW49","v":1},{"$f":"IF(AY48=0,0,1)","v":1},{"$f":"+AX49+AY49","v":1},{"$f":"IF(BB48=0,0,1)","v":0},null,{"$f":"+AZ49+BA49+BB49","v":0},{"$f":"IF(BF48=0,0,1)","v":0},null,null,{"$f":"+BE49+BF49+BC49+BD49","v":0},{"$f":"IF(BJ48=0,0,1)","v":1},null," ",{"$f":"+BG49+BH49+BI49+BJ49","v":1},{"$f":"IF(BM48=0,0,1)","v":0},null,{"$f":"+BK49+BL49+BM49","v":0},{"$f":"IF(BO48=0,0,1)","v":0},{"$f":"+BN49+BO49","v":0},{"$f":"IF(BQ48=0,0,1)","v":0},{"$f":"+BP49+BQ49","v":0},{"$f":"IF(BS48=0,0,1)","v":0},{"$f":"+BR49+BS49","v":0},{"$f":"IF(BU48=0,0,1)","v":0},{"$f":"+BT49+BU49","v":0},{"$f":"IF(BW48=0,0,1)","v":0},{"$f":"+BV49+BW49","v":0},{"$f":"IF(BY48=0,0,1)","v":0},{"$f":"+BX49+BY49","v":0},null,7,{"$f":"SUM(CA48,-1)","v":6},null,21,null,null,1]
["Valgt nr. fra obs.tidslinien :",null,null,null,null,null,null,null,null,{"$f":"IF(CB48<0,0,CB48)","v":6}," ",null,null,null,null,null,{"$f":"IF(AL51=1,VLOOKUP(AL50,BW92:BX125,2,FALSE),\"      Urtesvirreflue\")","v":"   Kørvel-Urtesvirreflue"},null,null,null,null,null,null,null,null,null,null,null,null,null,null,"    og om, hvordan nøglen bedst bruges.",null,null,null,"-",null,null,null,null,null,null,null,null,null,null,{"$f":"IF(J49=0,0,1)","v":1},{"$f":"IF(AH50=\" \",0,1)","v":1},{"$f":"IF(AH51=\" \",0,1)","v":0},{"$f":"IF(AH52=\" \",0,1)","v":0},{"$f":"IF(AH53=\" \",0,1)","v":1},{"$f":"IF(AH54=\" \",0,1)","v":0},{"$f":"IF(AH55=\" \",0,1)","v":0},{"$f":"IF(AH56=\" \",0,1)","v":0},{"$f":"IF(AH57=\" \",0,1)","v":0},{"$f":"IF(AH58=\" \",0,1)","v":0},{"$f":"IF(AH59=\" \",0,1)","v":0},{"$f":"IF(AH60=\" \",0,1)","v":0},{"$f":"IF(AH61=\" \",0,1)","v":0},{"$f":"IF(AH62=\" \",0,1)","v":1},{"$f":"IF(AH63=\" \",0,1)","v":0},{"$f":"IF(AH64=\" \",0,1)","v":0},{"$f":"IF(AH65=\" \",0,1)","v":0},{"$f":"IF(AH66=\" \",0,1)","v":0},{"$f":"IF(AH67=\" \",0,1)","v":0},{"$f":"IF(AH68=\" \",0,1)","v":0},{"$f":"IF(AH69=\" \",0,1)","v":0},{"$f":"IF(AH70=\" \",0,1)","v":0},{"$f":"IF(AH71=\" \",0,1)","v":0},{"$f":"IF(AH72=\" \",0,1)","v":0},{"$f":"IF(AH73=\" \",0,1)","v":0},{"$f":"IF(AH74=\" \",0,1)","v":0},{"$f":"IF(AH75=\" \",0,1)","v":0},{"$f":"IF(AH76=\" \",0,1)","v":0},{"$f":"IF(AH77=\" \",0,1)","v":0},{"$f":"IF(AH78=\" \",0,1)","v":0},{"$f":"IF(AH79=\" \",0,1)","v":0},null,"bp6 kopieres til K6",{"$f":"IF(CB48<1,\" \",CB48)","v":6},null,null,null,null,2]
["Scutellum med børster på sidekanten ?",null,null,null,null,null,null,null,null,null," ",null,null,null,null,{"$f":"IF(AL48=0,\" \",IF((AL51>=2)*AND(AL48=AL50),AL51,\" \"))","v":" "},{"$f":"IF(AL48=0,\" \",IF((AL51>=2)*AND($AL$48=$AL$50),\"arter har de kendetegn, du har markeret.\",\" \"))","v":" "},null,null,null,null,null,null,null,null,null,null,null,null,null,null,null,null,{"$f":"IF(AI50,\"x\",\" \")","v":"x"},true,null,null,{"$f":"MAX(AL52:AL85)","v":4},"Maks.",null,null,null,null,null,null,null,null,null,null,"m","u","s","g","rb","s",null,null,"g","s","sg","gs","g","s","dg","m","l",null,null,null,"L","o",null,null,null,null,null,null," ",null,null,null,null,null,null,3]
["       -        uden børster, måske lyse hår ?",null,null,null,null,null,null,null,null,null," ",null,null,null,null,{"$f":"IF(AL51=1,\"   Fluen er nu bestemt.   Se ovenfor.\",\" \")","v":"   Fluen er nu bestemt.   Se ovenfor."},null,null,null,null,null,null,null,null,null,null,null,null,null," ",null,null,null," ",0,null,null,{"$f":"COUNTIF(AL52:AL85,AL50)","v":1},"Ant. Maks",null,null,null,null,null,null,null,"T","     Scut.",null,"Øjne",null," ","Føl"," ",null," Lår",null,null,null,"Skben",null,null," Fødder",null,null," Sct.",null,"Vinger",null," Ant.",null,"  plet",null,"Ans. Hår",null,"Unders.",null,null,null,null,null,null,null,null,4]
["Øjne behårede ?",null,null,null,null,null,null,null,null,null,null,null,null,null,null,{"$f":"IF(AL48>AL50,\"Afkrydsede kendetegn passer ikke med nøglen.\",\" \")","v":" "},null,null,null,null,null,null,null,null,null,null,null,null,null,null,null,null,null," ",false,null,null,{"$f":"SUM(AU52:BY52)","v":1},"albipila",null,null,null,null,null,null,null,{"$f":"IF((J49>=I$46)*AND(J49<=P$46),1,\" \")","v":1}," ",{"$f":"IF($AH$51=\"x\",1,\" \")","v":" "},{"$f":"IF($AH$52=\"x\",1,\" \")","v":" "}," "," ",null,{"$f":"IF($AH$56=\"x\",1,\" \")","v":" "},null,null,null,{"$f":"IF($AH$60=\"x\",1,\" \")","v":" "}," ",null,null,{"$f":"IF($AH$64=\"x\",1,\" \")","v":" "},null,{"$f":"IF($AH$66=\"x\",1,\" \")","v":" "},null,null,{"$f":"IF($AH$69=\"x\",1,\"  \")","v":"  "}," ",{"$f":"IF($AH$71=\"x\",1,\" \")","v":" "},null,{"$f":"IF($AH$73=\"x\",1,\" \")","v":" "},null,{"$f":"IF($AH$75=\"x\",1,\" \")","v":" "},null,{"$f":"IF($AH$77=\"x\",1,\" \")","v":" "},{"$f":"IF($AH$78=\"x\",1,\" \")","v":" "},null,null,null,null,null,null,null,null,5]
["   -    ikke behårede ?",null,null,null,null,null,null,null,null,null,null,null,null,null,null,{"$f":"IF(AL48>AL50,\"Det gør en bestemmelse tvivlsom.   Prøv igen ! \",\" \")","v":" "},null,null,null,null,null,null,null,null,null,null,null,null,null,null,null,null,null,"x",true,null,null,2,"albitarsis",null,null,null,null,null,null,null,{"$f":"IF((J49>=N$46)*AND(J49<=W$46),1,\" \")","v":" "},{"$f":"IF($AH$50=\"x\",1,\" \")","v":1},null,null,{"$f":"IF($AH$53=\"x\",1,\" \")","v":1},{"$f":"IF($AH$54=\"x\",1,\" \")","v":" "},null,null,{"$f":"IF($AH$57=\"x\",1,\" \")","v":" "},null,null,null,{"$f":"IF($AH$61=\"x\",1,\" \")","v":" "},null,null,null,null," ",null,null,{"$f":"IF($AH$69=\"x\",1,\"  \")","v":"  "},null,{"$f":"IF($AH$71=\"x\",1,\" \")","v":" "},null," ",null," ",null," ",null,{"$f":"IF($AH$79=\"x\",1,\" \")","v":" "},null,null,null,null,null,null,null,6]
["Følehornsled  3 sort eller sortbrunt ?",null,null,null,null,null,null,null,null,null,null,null,null,null,null,null,null,null,null,null,null,null,null,null,null,null,null,null,null,null,null,null,null," ",false,null,null,3,"antiqua",null,null,null,null,null,null,null,{"$f":"IF((J49>=M$46)*AND(J49<=O$46),1,\" \")","v":1},{"$f":"IF($AH$50=\"x\",1,\" \")","v":1}," "," ",{"$f":"IF($AH$53=\"x\",1,\" \")","v":1},{"$f":"IF($AH$54=\"x\",1,\" \")","v":" "}," "," "," ",null,null,null,{"$f":"IF($AH$61=\"x\",1,\" \")","v":" "},null,null,null,{"$f":"IF($AH$65=\"x\",1,\" \")","v":" "},null,null,null,{"$f":"IF($AH$69=\"x\",1,\"  \")","v":"  "},null,{"$f":"IF($AH$71=\"x\",1,\" \")","v":" "},null," ",null," ",null," ",null," ",null,null,null,null,null,null,null,7]
["      -                rødbrunligt ell. brunligt ?",null,null,null,null,null,null,null,null,null,null,null,null,null,null,null,null,null,null,null,null,null,null,null,null,null,null,null,null,null,null,null,null," ",false,null,null,2,"bergenstammi",null,null,null,null,null,null,null,{"$f":"IF((J49>=N$46)*AND(J49<=AB$46),1,\" \")","v":" "},1,null,{"$f":"IF($AH$52=\"x\",1,\" \")","v":" "},null,null,null,{"$f":"IF($AH$56=\"x\",1,\" \")","v":" "},null,{"$f":"IF($AH$58=\"x\",1,\" \")","v":" "},null,null," ",{"$f":"IF($AH$62=\"x\",1,\" \")","v":1},{"$f":"IF($AH$63=\"x\",1,\" \")","v":" "},null,null," ",null,null,"  "," "," ",null," ",null," ",null," ",null," ",null,null,null,null,null,null,null,8]
["      -                gult eller orangegult ?",null,null,null,null,null,null,null,null,null,null,null,null,1,{"$f":"IF($AL52=$AL$50,$AM52,\" \")","v":" "},null,null,null,null,null,13,{"$f":"IF($AL64=$AL$50,$AM64,\" \")","v":" "},null,null,null,null,25,{"$f":"IF($AL76=$AL$50,$AM76,\" \")","v":" "},null,null,null,null," "," ",false,null,null,1,"canicularis",null,null,null,null,null,null,null,{"$f":"IF((J49>=V$46)*AND(J49<=AD$46),1,\" \")","v":" "},null,{"$f":"IF($AH$51=\"x\",1,\" \")","v":" "},{"$f":"IF($AH$52=\"x\",1,\" \")","v":" "},null,null,{"$f":"IF($AH$55=\"x\",1,\" \")","v":" "},null,null," ",null,null," ",{"$f":"IF($AH$62=\"x\",1,\" \")","v":1},{"$f":"IF($AH$63=\"x\",1,\" \")","v":" "},null,null,null,{"$f":"IF($AH$67=\"x\",1,\" \")","v":" "},null,"  ",null," ",null," ",null," ",null," ",null," ",null,null,null,null,null,null,null,9]
["Lår helt sorte, også på helt yderste spids ?",null,null,null,null,null,null,null,null,null,null,null,null,2," ",null,null,null,null,null,14," ",null,null,null,null,26," ",null,null,null,null,null," ",0,null,null,2,"carbonaria",null,null,null,null,null,null,null,{"$f":"IF((J49>=O$46)*AND(J49<=AB$46),1,\" \")","v":" "},1,null,{"$f":"IF($AH$52=\"x\",1,\" \")","v":" "},null,null,{"$f":"IF($AH$55=\"x\",1,\" \")","v":" "},null,null," ",null,null,null,{"$f":"IF($AH$62=\"x\",1,\" \")","v":1},null,null,null,{"$f":"IF($AH$66=\"x\",1,\" \")","v":" "},null,null,"  ",{"$f":"IF($AH$70=\"x\",1,\" \")","v":" "},null,null," ",null," ",null," ",null," ",null,null,null,null,null,null,null,10]
["   -   med yderste spids ganske smalt gul ?",null,null,null,null,null,null,null,null,null,null,null,null,3," ",null,null,null,null,null,15," ",null,null,null,null,27," ",null,null,null,null,null," ",0,null,null,2,"chloris",null,null,null,null,null,null,null,{"$f":"IF((J49>=K$46)*AND(J49<=S$46),1,\" \")","v":1}," ",{"$f":"IF($AH$51=\"x\",1,\" \")","v":" "},{"$f":"IF($AH$52=\"x\",1,\" \")","v":" "}," "," ",null,{"$f":"IF($AH$56=\"x\",1,\" \")","v":" "},null," ",null,null," ",{"$f":"IF($AH$62=\"x\",1,\" \")","v":1},null,null,null,{"$f":"IF($AH$66=\"x\",1,\" \")","v":" "},null,null,"  "," "," ",null," ",null," ",null," ",null," ",null,null,null,null,null,null,null,11]
["   -   med spidsen noget mere gul ?",null,null,null,null,null,null,null,null,null,null,null,null,4," ",null,null,null,null,null,16," ",null,null,null,null,28," ",null,null,null,null,null," ",false,null,null,2,"cynocephala",null,null,null,null,null,null,null,{"$f":"IF((J49>=P$46)*AND(J49<=Z$46),1,\" \")","v":" "},1,null,{"$f":"IF($AH$52=\"x\",1,\" \")","v":" "},null,{"$f":"IF($AH$54=\"x\",1,\" \")","v":" "},{"$f":"IF($AH$55=\"x\",1,\" \")","v":" "},null,null," ",null,null," ",{"$f":"IF($AH$62=\"x\",1,\" \")","v":1},null,null,null," ",null,null,"  ",{"$f":"IF($AH$70=\"x\",1,\" \")","v":" "}," ",null," ",null," ",null," ",null," ",null,null,null,null,null,null,null,12]
["   -   helt  gule ?",null,null,null,null,null,null,null,null,null,null,null,null,5," ",null,null,null,null,null,17," ",null,null,null,null,29," ",null,null,null,null,null," ",false,null,null,2,"flavipes",null,null,null,null,null,null,null,{"$f":"IF((J49>=M$46)*AND(J49<=Q$46),1,\" \")","v":1},null,{"$f":"IF($AH$51=\"x\",1,\" \")","v":" "},null,{"$f":"IF($AH$53=\"x\",1,\" \")","v":1},null,null,{"$f":"IF($AH$56=\"x\",1,\" \")","v":" "},null,null,null,{"$f":"IF($AH$60=\"x\",1,\" \")","v":" "}," ",null,null,{"$f":"IF($AH$64=\"x\",1,\" \")","v":" "},null," ",null,null,"  "," "," ",null," ",null," ",null," "," ",null,null,null,null,null,null,null,null,13]
["Skinneben helt sorte ?",null,null,null,null,null,null,null,null,null,null,null,null,6," ",null,null,null,null,null,18," ",null,null,null,null,30," ",null,null,null,null,null," ",0,null,null,2,"fraterna",null,null,null,null,null,null,null,{"$f":"IF((J49>=M$46)*AND(J49<=S$46),1,\" \")","v":1},1,{"$f":"IF($AH$51=\"x\",1,\" \")","v":" "},{"$f":"IF($AH$52=\"x\",1,\" \")","v":" "},null,null,null," ",null," ",null,null," ",null,{"$f":"IF($AH$63=\"x\",1,\" \")","v":" "}," ",null,{"$f":"IF($AH$66=\"x\",1,\" \")","v":" "},null,null,"  "," "," ",null," ",null," ",null," ",null,{"$f":"IF($AH$79=\"x\",1,\" \")","v":" "},null,null,null,null,null,null,null,14]
["  -    med sorte partier, større ell. mindre ?",null,null,null,null,null,null,null,null,null,null,null,null,7," ",null,null,null,null,null,19," ",null,null,null,null,31," ",null,null,null,null,null,"x",true,null,null,3,"frontalis",null,null,null,null,null,null,null,{"$f":"IF((J49>=L$46)*AND(J49<=S$46),1,\" \")","v":1},1," "," "," "," ",{"$f":"IF($AH$55=\"x\",1,\" \")","v":" "},null,null," ",null,null," ",{"$f":"IF($AH$62=\"x\",1,\" \")","v":1},null,null,{"$f":"IF($AH$65=\"x\",1,\" \")","v":" "},null,null,null,"  "," "," ",null," ",null," ",{"$f":"IF($AH$76=\"x\",1,\" \")","v":" "},null," ",null,null,null,null,null,null,null,null,15]
["  -    gule med svage utydelige pletter?",null,null,null,null,null,null,null,null,null,null,null,null,8," ",null,null,null,null,null,20," ",null,null,null,null,32," ",null,null,null,{"$f":"VLOOKUP(CD48,AB82:AC115,2)","v":"Cheilosia pagana"},null," ",false,null,null,2,"gigantea",null,null," ",null,null,null,null,{"$f":"IF((J49>=N$46)*AND(J49<=T$46),1,\" \")","v":" "},1,null," ",null,{"$f":"IF($AH$54=\"x\",1,\" \")","v":" "},null,null,null," ",null,null," ",1,null,null,null,{"$f":"IF($AH$66=\"x\",1,\" \")","v":" "},null,null,"  ",{"$f":"IF($AH$70=\"x\",1,\" \")","v":" "},null,null,{"$f":"IF($AH$73=\"x\",1,\" \")","v":" "},null," ",null,{"$f":"IF($AH$77=\"x\",1,\" \")","v":" "}," ",null,null,null,null,null,null,null,null,16]
["  -    helt gule ?",null,null,null,null,null,null,null,null,null,null,null,null,9," ",null,null,null,null,null,21,"pagana",null,null,null,null,33," ",null,null,null,null,null," ",false,null,null,1,"grossa",null,null,null,null,null,null,null,{"$f":"IF((J49>=H$46)*AND(J49<=N$46),1,\" \")","v":1}," ",{"$f":"IF($AH$51=\"x\",1,\" \")","v":" "}," "," ",{"$f":"IF($AH$54=\"x\",1,\" \")","v":" "}," "," ",null," ",null,null," ",null,{"$f":"IF($AH$63=\"x\",1,\" \")","v":" "},{"$f":"IF($AH$64=\"x\",1,\" \")","v":" "}," ",null,null,null,"  "," "," ",null," ",null," ",null," "," ",null,null,null,null,null,null,null,null,17]
["Fødder  mørke, også alle forfodsled ?",null,null,null,null,null,null,null,null,null,null,null,null,10," ",null,null,null,null,null,22," ",null,null,null,null,34," ",null,null,null,null,null," ",0,null,null,0,"illustrata",null,null,null,null,null,null,null,{"$f":"IF((J49>=R$46)*AND(J49<=Z$46),1,\" \")","v":" "},null," "," ",null,{"$f":"IF($AH$54=\"x\",1,\" \")","v":" "},null,null,{"$f":"IF($AH$57=\"x\",1,\" \")","v":" "},null,null,null,{"$f":"IF($AH$61=\"x\",1,\" \")","v":" "},null,null,null," ",null,null,null,"  ",{"$f":"IF($AH$70=\"x\",1,\" \")","v":" "},null,null," ",null," ",{"$f":"IF($AH$76=\"x\",1,\" \")","v":" "},null," ",null,null,null,null,null,null,null,null,18]
["     -      mere eller mindre gule/brungule ?",null,null,null,null,null,null,null,null,null,null,null,null,11," ",null,null,null,null,null,23," ",null,null,null,null,null,null,null,null,null,null,null," ",0,null,null,1,"impressa",null,null,null,null,null,null,null,{"$f":"IF((J49>=O$46)*AND(J49<=AA$46),1,\" \")","v":" "},{"$f":"IF($AH$50=\"x\",1,\" \")","v":1},null," ",null,{"$f":"IF($AH$54=\"x\",1,\" \")","v":" "},{"$f":"IF($AH$55=\"x\",1,\" \")","v":" "},null,{"$f":"IF($AH$57=\"x\",1,\" \")","v":" "},null,null,null,{"$f":"IF($AH$61=\"x\",1,\" \")","v":" "},null,null,null," ",null,null,null,"  ",null," ",{"$f":"IF($AH$72=\"x\",1,\" \")","v":" "},null,null,{"$f":"IF($AH$75=\"x\",1,\" \")","v":" "},null," ",null," ",null,null,null,null,null,null,null,19]
["     -      helt  gule ?",null,null,null,null,null,null,null,null,null,null,null,null,12,{"$f":"IF($AL63=$AL$50,$AM63,\" \")","v":" "},null,null,null,null,null,24," ",null,null,null,null,null,null,null,null,null,null,null," ",0,null,null,2,"lasiopa  ",null,null,null,null,null,null,null,{"$f":"IF((J49>=N$46)*AND(J49<=S$46),1,\" \")","v":" "},1,null," ",null,{"$f":"IF($AH$54=\"x\",1,\" \")","v":" "},null,null,null,{"$f":"IF($AH$58=\"x\",1,\" \")","v":" "},null,null," ",{"$f":"IF($AH$62=\"x\",1,\" \")","v":1},{"$f":"IF($AH$63=\"x\",1,\" \")","v":" "},null," ",null,null,null,"  "," "," ",null," ",null," "," ",null," ",null,null,null,null,null,null,null,null,20]
["Scutellum, ansigt ell. skuldre med gult ?",null,null,null,null,null,null,null,null,null,null,null,null,null,null,null,null,null,null,null,null,null,null,null,null,null,null,null,null,null,null,null,null," ",0,null,null,2,"latifrons",null,null,null,null,null,null,null,{"$f":"IF((J49>=O$46)*AND(J49<=Z$46),1,\" \")","v":" "},null,{"$f":"IF($AH$51=\"x\",1,\" \")","v":" "},null,{"$f":"IF($AH$53=\"x\",1,\" \")","v":1},null,{"$f":"IF($AH$55=\"x\",1,\" \")","v":" "},{"$f":"IF($AH$56=\"x\",1,\" \")","v":" "},null," ",null,null," ",1,null,null," ",null,null,null,"  ",null," ",null," ",null," "," ",null," ",null,null,null,null,null,null,null,null,21]
["      -       -       -   sort ?",null,null,null,null,null,null,null,null," ",null,null,null,null,null,null,null,null,null,null,null,null,null,null,null,null,null,null,null,null,null,null,null," ",0,null,null,3,"longula",null,null,null,null,null,null,null,{"$f":"IF((J49>=U$46)*AND(J49<=AB$46),1,\" \")","v":" "},1,null,null,{"$f":"IF($AH$53=\"x\",1,\" \")","v":1},{"$f":"IF($AH$54=\"x\",1,\" \")","v":" "},null,null,null," ",null,null," ",1,null,null,null,{"$f":"IF($AH$66=\"x\",1,\" \")","v":" "},null,{"$f":"IF($AH$68=\"x\",1,\"  \")","v":"  "},null,null," ",{"$f":"IF($AH$72=\"x\",1,\" \")","v":" "},null,null," ",null," ",null," ",null,null,null,null,null,null,null,22]
["Vinger mørktonede eller med sort plet?",null,null,null,null,null,null,null,null," "," ",null,null,null,null,null,null,null,null,null,null,null,null,null,null,null,null,null,null,null,null,null,null," ",0,null,null,3,"mutabilis",null,null,null,null,null,null,null,{"$f":"IF((J49>=Q$46)*AND(J49<=Y$46),1,\" \")","v":" "},1,null,null,{"$f":"IF($AH$53=\"x\",1,\" \")","v":1},{"$f":"IF($AH$54=\"x\",1,\" \")","v":" "},null,null,null," ",null,null," ",1,null,null,null,{"$f":"IF($AH$66=\"x\",1,\" \")","v":" "},null,null,"  ",null," "," ",null,null," ",null," ",null," ",null,null,null,null,null,null,null,23]
["    -     lysere, gultonede eller m. gul basis ?",null,null,null,null,null,null,null,null," ",null,null,null,null,null,null,null,null,null,null,null,null,null,null,null,null,null,null,null,null,null,null,null," ",0,null,null,2,"nigripes",null,null,null,null,null,null,null,{"$f":"IF((J49>=N$46)*AND(J49<=T$46),1,\" \")","v":" "},1,null,null,{"$f":"IF($AH$53=\"x\",1,\" \")","v":1},{"$f":"IF($AH$54=\"x\",1,\" \")","v":" "},null,null,{"$f":"IF($AH$57=\"x\",1,\" \")","v":" "},null,null,null,{"$f":"IF($AH$61=\"x\",1,\" \")","v":" "},null,null,null,{"$f":"IF($AH$65=\"x\",1,\" \")","v":" "},null,null,null,"  ",{"$f":"IF($AH$70=\"x\",1,\" \")","v":" "},null,null," ",null," ",null," ",null," ",null,null,null,null,null,null,null,24]
["Følehornsled 3 længere end bredt ?",null,null,null,null,null,null,null,null," ",null,null,null,null,null,null,null,null,null,null,null,null,null,null,null,null,null,null,null,null,null,null,null," ",0,null,null,4,"pagana",null,null,null,null,null,null,null,{"$f":"IF((J49>=J$46)*AND(J49<=AA$46),1,\" \")","v":1},1," "," ",{"$f":"IF($AH$53=\"x\",1,\" \")","v":1}," ",null,{"$f":"IF($AH$56=\"x\",1,\" \")","v":" "},null," ",{"$f":"IF($AH$59=\"x\",1,\" \")","v":" "},null," ",1,null,null,null,{"$f":"IF($AH$66=\"x\",1,\" \")","v":" "},null,null,"  "," "," "," ",null,null," ",null," ",null," "]
["           -         ikke længere end bredt ?",null,null,null,null,null,null,null,null," "," ",null,null,null,null,null,null,null,null,null,null,null,null,null,null,null,null,null,null,null,null,null,null," ",0,null,null,2,"proxima",null,null,null,null,null,null,null,{"$f":"IF((J49>=O$46)*AND(J49<=Z$46),1,\" \")","v":" "},1,null,{"$f":"IF($AH$52=\"x\",1,\" \")","v":" "},null,{"$f":"IF($AH$54=\"x\",1,\" \")","v":" "},null,null,null," ",null,null," ",{"$f":"IF($AH$62=\"x\",1,\" \")","v":1},null,null,null," ",null,null,"  ",null," ",null," ",null," ",null," ",{"$f":"IF($AH$78=\"x\",1,\" \")","v":" "}]
["Bagkrop med parvise sølvgrå pletter ? ",null,null,null,null,null,null,null,null," ",null,null,null,null,null,null,null,null,null,null,null,null,null,null,null,null,null,null,null,null,null,null,null," ",0,null,null,3,"pubera",null,null,null,null,null,null,null,{"$f":"IF((J49>=M$46)*AND(J49<=Q$46),1,\" \")","v":1},1," "," ",{"$f":"IF($AH$53=\"x\",1,\" \")","v":1},{"$f":"IF($AH$54=\"x\",1,\" \")","v":" "},{"$f":"IF($AH$55=\"x\",1,\" \")","v":" "},null,{"$f":"IF($AH$57=\"x\",1,\" \")","v":" "},null,null,null,{"$f":"IF($AH$61=\"x\",1,\" \")","v":" "},null,null,null,{"$f":"IF($AH$65=\"x\",1,\" \")","v":" "},null,null,null,"  "," "," ",null," ",null," ",null," "," "]
["     -        ikke med sådanne pleter ?",null,null,null,null,null,null,null,null," ",null,null,null,null,null,null,null,null,null,null,null,null,null,null,null,null,null,null,null,null,null,null,null," ",0,null,null,3,"rufimana ",null,null,null,null,null,null,null,{"$f":"IF((J49>=M$46)*AND(J49<=R$46),1,\" \")","v":1},1,null,{"$f":"IF($AH$52=\"x\",1,\" \")","v":" "},null,null,null,{"$f":"IF($AH$56=\"x\",1,\" \")","v":" "},null," ",null,null," ",1,null,null,null," ",null,null,"  "," "," ",null," ",null," ",null," "," "]
["Ansigt med udstående hår ved mundkant ?",null,null,null,null,null,null,null,null," "," ",null,null,null,null,null,null,null,null,null,null,null,null,null,null,null,null,null,null,null,null,null,null," ",0,null,null,3,"scutellata",null,null,null,null,null,null,null,{"$f":"IF((J49>=S$46)*AND(J49<=AA$46),1,\" \")","v":" "},1,null,null,{"$f":"IF($AH$53=\"x\",1,\" \")","v":1},null,{"$f":"IF($AH$55=\"x\",1,\" \")","v":" "},null,null," ",null,null," ",1,null,null,null," ",null,{"$f":"IF($AH$68=\"x\",1,\"  \")","v":"  "},null,null," ",null," ",null," ",null," ",null," "]
["    -      ikke med udstående hår ?",null,null,null,null,null,null,null,null," ",null,null,null,null,null,null,null,null,null,null,null,null,null,null,null,null,null,null,null,null,null,null,null," ",0,null,null,3,"soror",null,null,null,null,null,null,null,{"$f":"IF((J49>=Q$46)*AND(J49<=Y$46),1,\" \")","v":" "},1,null,null,{"$f":"IF($AH$53=\"x\",1,\" \")","v":1},null,null," ",null," ",null,null," ",1,null,null,null," ",null,"  ",null,null," ",null," ",null," ",null," "," "]
["Bagkropsunderside tydeligt bestøvet ?",null,null,null,null,null,null,null,null," "," ",null,null,null,null,null,null,null,null,null,null,null,null,null,null,null,null,null,null,null,null,null,null," ",0,null,null,2,"urbana",null,null,null,null,null,null,null,{"$f":"IF((J49>=L$46)*AND(J49<=Q$46),1,\" \")","v":1},1,null,{"$f":"IF($AH$52=\"x\",1,\" \")","v":" "}," ",{"$f":"IF($AH$54=\"x\",1,\" \")","v":" "},{"$f":"IF($AH$55=\"x\",1,\" \")","v":" "}," ",null,null,{"$f":"IF($AH$59=\"x\",1,\" \")","v":" "},null," ",null,{"$f":"IF($AH$63=\"x\",1,\" \")","v":" "},{"$f":"IF($AH$64=\"x\",1,\" \")","v":" "},null," ",null,null,"  "," "," ",{"$f":"IF($AH$72=\"x\",1,\" \")","v":" "},null,null," ",null," ",null," "]
["      -     skinnende eller næsten ?",null,null,null,null,null,null,null,null," ",null,null,null,null,null,null,null,null,null,null,null,null,null,null,null,null,null,null,null,null,null,{"$f":"VLOOKUP(BY36,N82:O111,2)","v":"Øjne ikke behårede"},null," ",0,null,null,2,"uviformis",null,null,null,null,null,null,null,{"$f":"IF((J49>=N$46)*AND(J49<=Q$46),1,\" \")","v":" "},1,null,{"$f":"IF($AH$52=\"x\",1,\" \")","v":" "},{"$f":"IF($AH$53=\"x\",1,\" \")","v":1},null,null," ",null," ",null,null," ",null,{"$f":"IF($AH$63=\"x\",1,\" \")","v":" "}," ",null," ",null,null,"  "," "," "," "," ",null," ",null," "," "," "]
[null,null,null,null,null,null,null,null,null," ",null,null,null,null,null,null,null,null,null,null,null,null,null,null,null,null,null,null,null,null,null,null,null,null,null,null,null,2,"variabilis",null,null,null,null,null,null,null,{"$f":"IF((J49>=N$46)*AND(J49<=Q$46),1,\" \")","v":" "},1,null,{"$f":"IF($AH$52=\"x\",1,\" \")","v":" "},null,{"$f":"IF($AH$54=\"x\",1,\" \")","v":" "},null,null,{"$f":"IF($AH$57=\"x\",1,\" \")","v":" "}," ",null,null,{"$f":"IF($AH$61=\"x\",1,\" \")","v":" "},{"$f":"IF($AH$62=\"x\",1,\" \")","v":1},null,null,{"$f":"IF($AH$65=\"x\",1,\" \")","v":" "},null,null,null,"  ",{"$f":"IF($AH$70=\"x\",1,\" \")","v":" "},null,null," ",null," ",{"$f":"IF($AH$76=\"x\",1,\" \")","v":" "},null," "]
[null,null,null,null,null,null,null,null,null,null,null,"Kendetegn",null,null,null,null,null,null,null,null,null,".",null,null,null,"Arter",null,null,null,null,null,null,null,null,null,null,null,2,"velutina",null,null,null,null,null,null,null,{"$f":"IF((J49>=S$46)*AND(J49<=Y$46),1,\" \")","v":" "},1,null,{"$f":"IF($AH$52=\"x\",1,\" \")","v":" "},null,null,{"$f":"IF($AH$55=\"x\",1,\" \")","v":" "},{"$f":"IF($AH$56=\"x\",1,\" \")","v":" "},null," ",null,null," ",1,null,null,null," ",null,null,"  ",null," ",null," ",null," ",null," "," "]
[null,null,null,null,null,null,null,null,null,null,null,6,null,1,"Scutellum med børster på sidekant",null,null,null,null,null,null,null,null,null,null,21,null,1,"Cheilosia albipila",null,null,null,null,null,null,null,null,3,"vernalis",null,null,null,null,null,null,null,{"$f":"IF((J49>=L$46)*AND(J49<=AE$46),1,\" \")","v":1},1," ",{"$f":"IF($AH$52=\"x\",1,\" \")","v":" "}," ",{"$f":"IF($AH$54=\"x\",1,\" \")","v":" "}," ",{"$f":"IF($AH$56=\"x\",1,\" \")","v":" "},null," ",null,null," ",1,null,null,null," ",null,null,"  "," "," ",null," ",null," ",null," ",null," "]
[null,null,null,null,null,null,null,null,null,null,null,null,null,2,"Scutellum uden børster, måske hår",null,null,null,null,null,null,null,null,null,null,null,null,2,"Cheilosia albitarsis",null,null,null,null,null,null,null,null,2,"vicina",null,null,null,null,null,null,null,{"$f":"IF((J49>=P$46)*AND(J49<=W$46),1,\" \")","v":" "},1,null,null,{"$f":"IF($AH$53=\"x\",1,\" \")","v":1},{"$f":"IF($AH$54=\"x\",1,\" \")","v":" "},null,null,{"$f":"IF($AH$57=\"x\",1,\" \")","v":" "},null,null,null,{"$f":"IF($AH$61=\"x\",1,\" \")","v":" "},null,null,null,{"$f":"IF($AH$65=\"x\",1,\" \")","v":" "},null,null,null,"  ",null," ",null," ",null," ",null," ",null," "]
[null,null,null,null,null,null,null,null,null,null,null,null,null,3,"Øjne behårede",null,null,null,null,null,null,null,null,null,null,null,null,3,"Cheilosia antiqua",null,null,null,null,null,null,null,null,2,"vulpina",null,null,null,null,null,null,null,{"$f":"IF((J49>=O$46)*AND(J49<=Y$46),1,\" \")","v":" "},1,null,{"$f":"IF($AH$52=\"x\",1,\" \")","v":" "},null,{"$f":"IF($AH$54=\"x\",1,\" \")","v":" "}," ",null,{"$f":"IF($AH$57=\"x\",1,\" \")","v":" "}," ",null,null,null,{"$f":"IF($AH$62=\"x\",1,\" \")","v":1},null,null,null," ",null,null,"  ",null," ",null," ",null," ",{"$f":"IF($AH$76=\"x\",1,\" \")","v":" "},null,{"$f":"IF($AH$78=\"x\",1,\" \")","v":" "}]
[null,null,null,null,null,null,null,null,null,null,null,null,null,4,"Øjne ikke behårede",null,null,null,null,null,null,null,null,null,null,null,null,4,"Cheilosia bergenstammi",null,null,null,null,null,null,null,null,2,"fasciata",null,null,null,null,null,null,null,{"$f":"IF((J50>=O$46)*AND(J50<=S$46),1,\" \")","v":" "},1,null,{"$f":"IF($AH$52=\"x\",1,\" \")","v":" "},null,{"$f":"IF($AH$54=\"x\",1,\" \")","v":" "},null,null,null," ",null,null,null,1,null,null," ",null,null,null,"  ",null," ",null," ",{"$f":"IF($AH$74=\"x\",1,\" \")","v":" "},null,null," "," "]
[null,null,null,null,null,null,null,null,null,null,null,null,null,5,"Følehorn sorte",null,null,null,null,null,null,null,null,null,null,null,null,5,"Cheilosia canicularis",null,null,null,null,null,null,null,null,null,null,null,null,null,null,null,null,null,null,null,null,null,null,null,null,null,null,null,null,null,null,null,null,null,null,null,null,null,null,null,null,null,null,null,null,null,null,null,null," "]
[null,null,null,null,null,null,null,null,null,null,null,null,null,6,"Følehorn rødbrunlige",null,null,null,null,null,null,null,null,null,null,null,null,6,"Cheilosia carbonaria"]
[null,null,null,null,null,null,null,null,null,null,null,null,null,7,"Følehorn gule eller orangegule",null,null,null,null,null,null,null,null,null,null,null,null,7,"Cheilosia chloris"]
[null,null,null,null,null,null,null,null,null,null,null,null,null,8,"Lår helt sorte",null,null,null,null,null,null,null,null,null,null,null,null,8,"Cheilosia cynocephala"]
[null,null,null,null,null,null,null,null,null,null,null,null,null,9,"Lår med helt yderste spids gul",null,null,null,null,null,null,null,null,null,null,null,null,9,"Cheilosia flavipes ",null,null,null," "]
[null,null,null,null,null,null,null,null,null,null,null,null,null,10,"Lår noget bredere gult yderst",null,null,null,null,null,null,null,null,null,null,null,null,10,"Cheilosia fraterna"]
[null,null,null,null,null,null,null,null,null,null,null,null,null,11,"Lår helt gule",null,null,null,null,null,null,null,null,null,null,null,null,11,"Cheilosia frontalis ",null,null,null,null,null,null,null,null,null,null,null,null,null,null,null,null,null,null,null,null,null,null,null,null,null,null,null,null,null,null,null,null,null,null,null,null,null,null,null,null,null,null,null,null,null,{"$f":"SUM(AU52:CB52)","v":1},"Hvidhåret Urtesvirreflue"]
[null,null,null,null,null,null,null,null,null,null,null,null,null,12,"Skinneben sorte",null,null,null,null,null,null,null,null,null,null,null,null,12,"Cheilosia gigantea ",null,null,null,null,null,null,null,null,null,null,null,null,null,null,null,null,null,null,null,null,null,null,null,null,null,null,null,null,null,null,null,null,null,null,null,null,null,null,null,null,null,null,null,null,null,{"$f":"SUM(AU53:CF53)","v":2},"  Hvidfodet Urtesvirreflue"]
[null,null,null,null,null,null,null,null,null,null,null,null,null,13,"Skinneben delvis sorte",null,null,null,null,null,null,null,null,null,null,null,null,13,"Cheilosia  grossa",null,null,null,null,null,null,null,null,null,null,null,null,null,null,null,null,null,null,null,null,null,null,null,null,null,null,null,null,null,null,null,null,null,null,null,null,null,null,null,null,null,null,null,null,null,{"$f":"SUM(AU54:CF54)","v":3},"Kodriver-Urtesvirreflue"]
[null,null,null,null,null,null,null,null,null,null,null,null,null,14,"Skinneben med kun svage mørkere partier",null,null,null,null,null,null,null,null,null,null,null,null,14,"Cheilosia illustrata",null,null,null,null,null,null,null,null,null,null,null,null,null,null,null,null,null,null,null,null,null,null,null,null,null,null,null,null,null,null,null,null,null,null,null,null,null,null,null,null,null,null,null,null,null,2,"Brandbæger-Urtesvirreflue"]
[null,null,null,null,null,null,null,null,null,null,null,null,null,15,"Skinneben helt gule",null,null,null,null,null,null,null,null,null,null,null,null,15,"Cheilosia impressa",null,null,null,null,null,null,null,null,null,null,null,null,null,null,null,null,null,null,null,null,null,null,null,null,null,null,null,null,null,null,null,null,null,null,null,null,null,null,null,null,null,null,null,null,null,1,"    Hestehov-Urtesvirreflue"]
[null,null,null,null,null,null,null,null,null,null,null,null,null,16,"Fødder sorte",null,null,null,null,null,null,null,null,null,null,null,null,16,"Cheilosia lasiopa ",null,null,null,null,null,null,null,null,null,null,null,null,null,null,null,null,null,null,null,null,null,null,null,null,null,null,null,null,null,null,null,null,null,null,null,null,null,null,null,null,null,null,null,null,null,2,"Mørkvinget Urtesvirreflue"]
[null,null,null,null,null,null,null,null,null,null,null,null,null,17,"Fødder både gule og sorte",null,null,null,null,null,null,null,null,null,null,null,null,17,"Cheilosia latifrons ",null,null,null,null,null,null,null,null,null,null,null,null,null,null,null,null,null,null,null,null,null,null,null,null,null,null,null,null,null,null,null,null,null,null,null,null,null,null,null,null,null,null,null,null,null,2,"   Grøn Urtesvirreflue"]
[null,null,null,null,null,null,null,null,null,null,null,null,null,18,"Fødder helt gule",null,null,null,null,null,null,null,null,null,null,null,null,18,"Cheilosia  longula",null,null,null,null,null,null,null,null,null,null,null,null,null,null,null,null,null,null,null,null,null,null,null,null,null,null,null,null,null,null,null,null,null,null,null,null,null,null,null,null,null,null,null,null,null,2,"Hundehoved-Urtesvirreflue"]
[null,null,null,null,null,null,null,null,null,null,null,null,null,19,"Scutellum gult",null,null,null,null,null,null,null,null,null,null,null,null,19,"Cheilosia mutabilis",null,null,null,null,null,null,null,null,null,null,null,null,null,null,null,null,null,null,null,null,null,null,null,null,null,null,null,null,null,null,null,null,null,null,null,null,null,null,null,null,null,null,null,null,null,2,"Gulbenet Urtesvirreflue"]
[null,null,null,null,null,null,null,null,null,null,null,null,null,20,"Scutellum sort",null,null,null,null,null,null,null,null,null,null,null,null,20,"Cheilosia nigripes",null,null,null,null,null,null,null,null,null,null,null,null,null,null,null,null,null,null,null,null,null,null,null,null,null,null,null,null,null,null,null,null,null,null,null,null,null,null,null,null,null,null,null,null,null,2,"Kabbeleje-Urtesvirreflue"]
[null,null,null,null,null,null,null,null,null,null,null,null,null,21,"Vinger mørktonede",null,null,null,null,null,null,null,null,null,null,null,null,21,"Cheilosia pagana",null,null,null,null,null,null,null,null,null,null,null,null,null,null,null,null,null,null,null,null,null,null,null,null,null,null,null,null,null,null,null,null,null,null,null,null,null,null,null,null,null,null,null,null,null,3,"    Sump-Urtesvirreflue"]
[null,null,null,null,null,null,null,null,null,null,null,null,null,22,"Vinger med gul basis",null,null,null,null,null,null,null,null,null,null,null,null,22,"Cheilosia proxima",null,null,null,null,null,null,null,null,null,null,null,null,null,null,null,null,null,null,null,null,null,null,null,null,null,null,null,null,null,null,null,null,null,null,null,null,null,null,null,null,null,null,null,null,null,2,"   Stor Urtesvirreflue"]
[null,null,null,null,null,null,null,null,null,null,null,null,null,23,"Følehornsled 3 længere end bredt",null,null,null,null,null,null,null,null,null,null,null,null,23,"Cheilosia pubera ",null,null,null,null,null,null,null,null,null,null,null,null,null,null,null,null,null,null,null,null,null,null,null,null,null,null,null,null,null,null,null,null,null,null,null,null,null,null,null,null,null,null,null,null,null,1,"Ræverød Urtesvirreflue"]
[null,null,null,null,null,null,null,null,null,null,null,null,null,24,"Følehornsled 3 ikke længere end bredt",null,null,null,null,null,null,null,null,null,null,null,null,24,"Cheilosia rufimana ",null,null,null,null,null,null,null,null,null,null,null,null,null,null,null,null,null,null,null,null,null,null,null,null,null,null,null,null,null,null,null,null,null,null,null,null,null,null,null,null,null,null,null,null,null,0,"    Broget Urtesvirreflue"]
[null,null,null,null,null,null,null,null,null,null,null,null,null,25,"Stor parvise grå pletter",null,null,null,null,null,null,null,null,null,null,null,null,25,"Cheilosia scutellata",null,null,null,null,null,null,null,null,null,null,null,null,null,null,null,null,null,null,null,null,null,null,null,null,null,null,null,null,null,null,null,null,null,null,null,null,null,null,null,null,null,null,null,null,null,1,"  Gulvinget Urtesvirreflue",null,null,null,null,null,null,null,null,null,null,null,null,null,null,null,null,null,null,null,null,null,{"$f":"SUM($BY$36)","v":4},{"$f":"VLOOKUP(CT106,'Ark3'!F1:G30,2,FALSE)","v":"Ark3!E4"}]
[null,null,null,null,null,null,null,null,null,null,null,null,null,26,"Ikke parvise grå pletter",null,null,null,null,null,null,null,null,null,null,null,null,26,"Cheilosia soror ",null,null,null,null,null,null,null,null,null,null,null,null,null,null,null,null,null,null,null,null,null,null,null,null,null,null,null,null,null,null,null,null,null,null,null,null,null,null,null,null,null,null,null,null,null,2,"Vejbred-Urtesvirreflue"]
[null,null,null,null,null,null,null,null,null,null,null,null,null,27,"Udstående hår ved mundkant",null,null,null,null,null,null,null,null,null,null,null,null,27,"Cheilosia urbana",null,null,null,null,null,null,null,null,null,null,null,null,null,null,null,null,null,null,null,null,null,null,null,null,null,null,null,null,null,null,null,null,null,null,null,null,null,null,null,null,null,null,null,null,null,2,"Bredkindet Urtesvirreflue"]
[null,null,null,null,null,null,null,null,null,null,null,null,null,28,"Ingen udstående hår ved mundkant",null,null,null,null,null,null,null,null,null,null,null,null,28,"Cheilosia uviformis",null,null,null,null,null,null,null,null,null,null,null,null,null,null,null,null,null,null,null,null,null,null,null,null,null,null,null,null,null,null,null,null,null,null,null,null,null,null,null,null,null,null,null,null,null,3,"    Lang Urtesvirreflue",null,null,null,null,null,null,null,null,null,null,null,null,null,null,null,null,null,null,null,null,null,{"$f":"SUM(CD48)","v":21},{"$f":"VLOOKUP(CT109,'Ark3'!B1:C34,2,FALSE)","v":"Ark3!A21"}]
[null,null,null,null,null,null,null,null,null,null,null,null,null,29,"Bagkropsunderside bestøvet",null,null,null,null,null,null,null,null,null,null,null,null,29,"Cheilosia variabilis",null,null,null,null,null,null,null,null,null,null,null,null,null,null,null,null,null,null,null,null,null,null,null,null,null,null,null,null,null,null,null,null,null,null,null,null,null,null,null,null,null,null,null,null,null,3,"Foranderlig Urtesvirreflue"]
[null,null,null,null,null,null,null,null,null,null,null,null,null,30,"Bagkropsunderside skinnende",null,null,null,null,null,null,null,null,null,null,null,null,30,"Cheilosia velutina",null,null,null,null,null,null,null,null,null,null,null,null,null,null,null,null,null,null,null,null,null,null,null,null,null,null,null,null,null,null,null,null,null,null,null,null,null,null,null,null,null,null,null,null,null,2," Sortfodet Urtesvirreflue",null,null,null,null,null,null,null,null,null,null,null,null,null,null,null,null,null,null,null,null,null,{"$f":"SUM(CD48)","v":21},{"$f":"VLOOKUP(CT111,'Ark2'!B1:C34,2,FALSE)","v":"Ark2!A21"}]
[null,null,null,null,null,null,null,null,null,null,null,null,null,null,null,null,null,null,null,null,null,null,null,null,null,null,null,31,"Cheilosia vernalis",null,null,null,null,null,null,null,null,null,null,null,null,null,null,null,null,null,null,null,null,null,null,null,null,null,null,null,null,null,null,null,null,null,null,null,null,null,null,null,null,null,null,null,null,null,4,"   Kørvel-Urtesvirreflue"]
[null,null,null,null,null,null,null,null,null,null,null,null,null,null,null,null,null,null,null,null,null,null,null,null,null,null,null,32,"Cheilosia vicina ",null,null,null,null,null,null,null,null,null,null,null,null,null,null,null,null,null,null,null,null,null,null,null,null,null,null,null,null,null,null,null,null,null,null,null,null,null,null,null,null,null,null,null,null,null,2," Tidsel-Urtesvirreflue"]
[null,null,null,null,null,null,null,null,null,null,null,null,null,null,null,null,null,null,null,null,null,null,null,null,null,null,null,33,"Cheilosia vulpina",null,null,null,null,null,null,null,null,null,null,null,null,null,null,null,null,null,null,null,null,null,null,null,null,null,null,null,null,null,null,null,null,null,null,null,null,null,null,null,null,null,null,null,null,null,3,"  Dunet Urtesvirreflue"]
[null,null,null,null,null,null,null,null,null,null,null,null,null,null,null,null,null,null,null,null,null,null,null,null,null,null,null,34,"Cheilosia fasciata",null,null,null,null,null,null,null,null,null,null,null,null,null,null,null,null,null,null,null,null,null,null,null,null,null,null,null,null,null,null,null,null,null,null,null,null,null,null,null,null,null,null,null,null,null,3,"Rødfodet Urtesvirreflue",null,null,null,null,null,null,null,null,null,null,null,null,null,null,null,null,null,null,null,null,null,{"$f":"SUM($BY$36)","v":4},{"$f":"VLOOKUP(CT115,'Ark3'!F1:G30,2,FALSE)","v":"Ark3!E4"}]
[null,null,null,null,null,null,null,null,null,null,null,null,null,null,null,null,null,null,null,null,null,null,null,null,null,null,null,null,null,null,null,null,null,null,null,null,null,null,null,null,null,null,null,null,null,null,null,null,null,null,null,null,null,null,null,null,null,null,null,null,null,null,null,null,null,null,null,null,null,null,null,null,null,null,3,"    Rørhat-Urtesvirreflue"]
[null,null,null,null,null,null,null,null,null,null,null,null,null,null,null,null,null,null,null,null,null,null,null,null,null,null,null,null,null,null,null,null,null,null,null,null,null,null,null,null,null,null,null,null,null,null,null,null,null,null,null,null,null,null,null,null,null,null,null,null,null,null,null,null,null,null,null,null,null,null,null,null,null,null,3,"Trøffel-Urtesvirreflue"]
[null,null,null,null,null,null,null,null,null,null,null,null,null,null,null,null,null,null,null,null,null,null,null,null,null,null,null,null,null,null,null,null,null,null,null,null,null,null,null,null,null,null,null,null,null,null,null,null,null,null,null,null,null,null,null,null,null,null,null,null,null,null,null,null,null,null,null,null,null,null,null,null,null,null,2,"   Tidlig Urtesvirreflue"]
[null,null,null,null,null,null,null,null,null,null,null,null,null,null,null,null,null,null,null,null,null,null,null,null,null,null,null,null,null,null,null,null,null,null,null,null,null,null,null,null,null,null,null,null,null,null,null,null,null,null,null,null,null,null,null,null,null,null,null,null,null,null,null,null,null,null,null,null,null,null,null,null,null,null,2,"      Sølv-Urtesvirreflue"]
[null,null,null,null,null,"Lopslag for stort kendetegnbillede bruger CS106 og CT106 og CU106 sammen med BY36 , der kodes af checkboxene",null,null,null,null,null,null,null,null,null,null,null,null,null,null,null,null,null,null,null,null,null,null,null,null,null,null,null,null,null,null,null,null,null,null,null,null,null,null,null,null,null,null,null,null,null,null,null,null,null,null,null,null,null,null,null,null,null,null,null,null,null,null,null,null,null,null,null,null,2,"      Sort Urtesvirreflue"]
[null,null,null,null,null,"Lopslag for lille kendetegnbillede bruger CS115 og CT115 og CU115 sammen med BY36 , der kodes af checkboxene",null,null,null,null,null,null,null,null,null,null,null,null,null,null,null,null,null,null,null,null,null,null,null,null,null,null,null,null,null,null,null,null,null,null,null,null,null,null,null,null,null,null,null,null,null,null,null,null,null,null,null,null,null,null,null,null,null,null,null,null,null,null,null,null,null,null,null,null,2,"Gulerod-Urtesvirreflue"]
[null,null,null,null,null,"Lopslag for teksterne bruger CS111 og CT111 og CU111) sammen med CD48 , der er lig alternativknapperne",null,null,null,null,null,null,null,null,null,null,null,null,null,null,null,null,null,null,null,null,null,null,null,null,null,null,null,null,null,null,null,null,null,null,null,null,null,null,null,null,null,null,null,null,null,null,null,null,null,null,null,null,null,null,null,null,null,null,null,null,null,null,null,null,null,null,null,null,3,"  Asters-Urtesvirreflue"]
[null,null,null,null,null,"Lopslag forbillede bruger CS109 og CT109 og CU109) sammen med CD48 , der er lig alternativknapperne",null,null,null,null,null,null,null,null,null,null,null,null,null,null,null,null,null,null,null,null,null,null,null,null,null,null,null,null,null,null,null,null,null,null,null,null,null,null,null,null,null,null,null,null,null,null,null,null,null,null,null,null,null,null,null,null,null,null,null,null,null,null,null,null,null,null,null,null,2,"Næse-Urtesvirreflue"]
[null,null,null,null,null,null,null,null,null,null,null,null,null,null,null,null,null,null,null,null,null,null,null,null,null,null,null,null,null,null,null,null,null,null,null,null,null,null,null,null,null,null,null,null,null,null,null,null,null,null,null,null,null,null,null,null,null,null,null,null,null,null,null,null,null,null,null,null,null,null,null,null,null,null,2,"Artiskok-Urtesvirreflue"]
[null,null,null,null,null,"flag1 er for 1. billede;flag3 er for 2. billede;flag2 er for teksterne; flag 4 er for detailbillederne",null,null,null,null,null,null,null,null,null,null,null,null,null,null,null,null,null,null,null,null,null,null,null,null,null,null,null,null,34,null,null,null,null,null,null,null,null,null,null,null,null,null,null,null,null,null,null,null,null,null,null,null,null,null,null,null,null,null,null,null,null,null,null,null,null,null,null,null,2," Lille Ramsløg-Svirreflue"]
[]
[null,null,null,null,null,null,null,null,null,null,null,null,null,null,null,null,null,null,null,null,null,null,null,null,null,null,null,null,null,null,null,null,null,2,1,"albipila",1,"noget udhulet under følehornene. Øjnene langt lyst behårede. Scutellum"]
[null,null,null,null,null,null,null,null,null,null,null,null,null,null,null,null,null,null,null,null,null,null,null,null,null,null,null,null,null,null,null,null,null,null,2,"albitarsis",2,"noget bestøvet. Panden skinnende. Øjne med lang lys behåring (han), uden"]
[null,null,null,null,null,null,null,null,null,null,null,null,null,null,null,null,null,null,null,null,null,null,null,null,null,null,null,null,null,null,null,null,null,null,3,"antiqua",3,"følehornene. Underansigtet kraftigt fremskudt og skinnende. Panden "]
[null,null,null,null,null,null,null,null,null,null,null,null,null,null,null,null,null,null,null,null,null,null,null,null,null,null,null,null,null,null,null,null,null,null,4,"bergenstammi",4,"fremskudt. Pande skinnende. Øjne med hår på den øverste del. Scutellum"]
[null,null,null,null,null,null,null,null,null,null,null,null,null,null,null,null,null,null,null,null,null,null,null,null,null,null,null,null,null,null,null,null,null,null,5,"canicularis",5]
[null,null,null,null,null,null,null,null,null,null,null,null,null,null,null,null,null,null,null,null,null,null,null,null,null,null,null,null,null,null,null,null,null,null,6,"carbonaria",6]
[null,null,null,null,null,null,null,null,null,null,null,null,null,null,null,null,null,null,null,null,null,null,null,null,null,null,null,null,null,null,null,null,null,null,7,"chlorus",7]
[null,null,null,null,null,null,null,null,null,null,null,null,null,null,null,null,null,null,null,null,null,null,null,null,null,null,null,null,null,null,null,null,null,null,8,"cynocephala",8,"også skråt nedefter. Panden næsten skinnende. Øjne ganske kort brunt"]
[null,null,null,null,null,null,null,null,null,null,null,null,null,null,null,null,null,null,null,null,null,null,null,null,null,null,null,null,null,null," ",null,null,null,9,"flavipes",9,"øverst hos han, ubehårede hos hun. Scutellum uden børster, men hos "]
[null,null,null,null,null,null,null,null,null,null,null,null,null,null,null,null,null,null,null,null,null,null,null,null,null,null,null,null,null,null,null,null,null,null,10,"fraterna",10,"siderne.Øjne med korte mørke hår (han), meget korte, lyse (hun). Scu-"]
[null,null,null,null,null,null,null,null,null,null,null,null,null,null,null,null,null,null,null,null,null,null,null,null,null,null,null,null,null,null,null,null," ",null,11,"frontalis",11,"nens pande opsvulmet. Øjne med lange mørke hår (han), færre, kortere"]
[null,null,null,null,null,null,null,null,null,null,null,null,null,null,null,null,null,null,null,null,null,null,null,null,null,null,null,null,null,null,null,null,null,null,12,"gigantea",12,"Panden sortskinnende. Øjne med ret lange gullige hår. Scutellum med"]
[null,null,null,null,null,null,null,null,null,null,null,null,null,null,null,null,null,null,null,null,null,null,null,null,null,null,null,null,null,null,null,null,null,null,13,"grossa",13,"sorte hår. Scutellum uden børster, men med lange lyse hår. Brystet langt"]
[null,null,null,null,null,null,null,null,null,null,null,null,null,null,null,null,null,null,null,null,null,null,null,null,null,null,null,null,null,null,null,null,null,null,14,"illustrata",14,"med udstående lyse hår.  Øjnene har lang lys behåring. Scutellum uden"]
[null,null,null,null,null,null,null,null,null,null,null,null,null,null,null,null,null,null,null,null,null,null,null,null,null,null,null,null,null,null,null,null,null,null,15,"impressa",15,"følehornene, mest hos hunnen. Panden er skinnende. Øjenbehåringen"]
[null,null,null,null,null,null,null,null,null,null,null,null,null,null,null,null,null,null,null,null,null,null,null,null,null,null,null,null,null,null,null,null,null,null,16,"lasiopa   (=honesta)",16,"hornene, svagt bestøvet. Panden skinnende. Øjne med  meget korte lyse"]
[null,null,null,null,null,null,null,null,null,null,null,null,null,null,null,null,null,null,null,null,null,null,null,null,null,null,null,null,null,null,null,null,null,null,17,"latifrons  (=intonsa)",17,"udhulet under følehornene, lidt bestøvet. Panden skinnende. Øjne øverst "]
[null,null,null,null,null,null,null,null,null,null,null,null,null,null,null,null,null,null,null,null,null,null,null,null,null,null,null,null,null,null,null,null,null,null,18,"longula",18,"brune sidepletter. Øjne uden hår. Scutellum med 6-8 lange børster. Skuldre"]
[null,null,null,null,null,null,null,null,null,null,null,null,null,null,null,null,null,null,null,null,null,null,null,null,null,null,null,null,null,null,null,null,null,null,19,"mutabilis",19,"let. Panden bestøvet. Øjne med korte lyse hår (han), uden hår (hun). Scutellum"]
[null,null,null,null,null,null,null,null,null,null,null,null,null,null,null,null,null,null,null,null,null,null,null,null,null,null,null,null,null,null,null,null,null,null,20,"nigripes",20,"Hannens pande ikke helt bestøvet. Øjnene ubehårede. Brystet hos begge"]
[null,null,null,null,null,null,null,null,null,null,null,null,null,null,null,null,null,null,null,null,null,null,null,null,null,null,null,null,null,null,null,null,null,null,21,"pagana",21,"Panden skinnende. Øjnene uden hår, hannen om foråret måske med ganske få."]
[null,null,null,null,null,null,null,null,null,null,null,null,null,null,null,null,null,null,null,null,null,null,null,null,null,null,null,null,null,null,null,null,null,null,22,"proxima",22,"under følehornene, for neden bestøvet. Panden sortskinnende. Øjne lyst"]
[null,null,null,null,null,null,null,null,null,null,null,null,null,null,null,null,null,null,null,null,null,null,null,null,null,null,null,null,null,null,null,null,null,null,23,"pubera",23,"og ansigt kraftigt bestøvet, dog er hunnens pande skinnende. Øjne uden"]
[null,null,null,null,null,null,null,null,null,null,null,null,null,null,null,null,null,null,null,null,null,null,null,null,null,null,null,null,null,null,null,null,null,null,24,"rufimana ",24,"og hannens pande svagt bestøvet. Scutellum med mange hårlignende mørke"]
[null,null,null,null,null,null,null,null,null,null,null,null,null,null,null,null,null,null,null,null,null,null,null,null,null,null,null,null,null,null,null,null,null,null,25,"scutellata",25,"Hos hunnen gul plet på mundkantens sider. Hannens pande skinnende."]
[null,null,null,null,null,null,null,null,null,null,null,null,null,null,null,null,null,null,null,null,null,null,null,null,null,null,null,null,null,null,null,null,null,null,26,"soror",26,"pande skinnende. Øjne uden hår. Scutellum med mange tynde børster (han),"]
[null,null,null,null,null,null,null,null,null,null,null,null,null,null,null,null,null,null,null,null,null,null,null,null,null,null,null,null,null,null,null,null,null,null,27,"urbana  (=praecox)",27,"mest hos hunnen. Panden bestøvet langs øjnene. Scutellum med  børster,"]
[null,null,null,null,null,null,null,null,null,null,null,null,null,null,null,null,null,null,null,null,null,null,null,null,null,null,null,null,null,null,null,null,null,null,28,"uviformis",28,"Pande kraftigt bestøvet. Øjne med lyse hår (han), næsten nøgne (hun)."]
[null,null,null,null,null,null,null,null,null,null,null,null,null,null,null,null,null,null,null,null,null,null,null,null,null,null,null,null,null,null,null,null,null,null,29,"variabilis",29,"ende hår. Øjne med ret lang lys behåring. Scutellum med børster, mange og"]
[null,null,null,null,null,null,null,null,null,null,null,null,null,null,null,null,null,null,null,null,null,null,null,null,null,null,null,null,null,null,null,null,null,null,30,"velutina",30,"nende. Øjne med korte lyse hår. Scutellum med sorte børster. Bryst med over-"]
[null,null,null,null,null,null,null,null,null,null,null,null,null,null,null,null,null,null,null,null,null,null,null,null,null,null,null,null,null,null,null,null,null,null,31,"vernalis",31,"Panden skinnende, kun meget smalt bestøvet langs øjnene. Brystets overside "]
[null,null,null,null,null,null,null,null,null,null,null,null,null,null,null,null,null,null,null,null,null,null,null,null,null,null,null,null,null,null,null,null,null,null,32,"vicina   (=nasutula)",32,"sigtsknoppen tydeligt fremadrettet. Hannens pande bestøvet. Øjne uden"]
[null,null,null,null,null,null,null,null,null,null,null,null,null,null,null,null,null,null,null,null,null,null,null,null,null,null,null,null,null,null,null,null,null,null,33,"vulpina",33,"sigt med udstående hår, tydeligst hos han. Hannens pande skinnende."]
[]
[]
[null,null,null,null,null,null,null,null,null,null,null,null,null,null,null,null,null,null,null,null,null,null,null,null,null,null,null,null,null,null,null,null,null,3,1,"albipila",1,"uden børster, men med lange lyse hår. Kroppen med lang lys behåring."]
[null,null,null,null,null,null,null,null,null,null,null,null,null,null,null,null,null,null,null,null,null,null,null,null,null,null,null,null,null,null,null,null,null,null,2,"albitarsis",2,"hår (hun). Scutellum med lange tyne børster (han(), kortere og kraftigere"]
[null,null,null,null,null,null,null,null,null,null,null,null,null,null,null,null,null,null,null,null,null,null,null,null,null,null,null,null,null,null,null,null,null,null,3,"antiqua",3,"noget skinnende. Øjnene uden hår. Scutellum med får ret lange børster."]
[null,null,null,null,null,null,null,null,null,null,null,null,null,null,null,null,null,null,null,null,null,null,null,null,null,null,null,null,null,null,null,null,null,null,4,"bergenstammi",4,"med 4-8 sorte børster. Bryst og bagkrops overside og underside skinnende"]
[null,null,null,null,null,null,null,null,null,null,null,null,null,null,null,null,null,null,null,null,null,null,null,null,null,null,null,null,null,null,null,null,null,null,5,"canicularis",5,"uden børster. Bryst og bagkrop skinnende med orangegul behåring, opret"]
[null,null,null,null,null,null,null,null,null,null,null,null,null,null,null,null,null,null,null,null,null,null,null,null,null,null,null,null,null,null,null,null,null,null,6,"carbonaria",6,"og bagkrop skinnende sort, hunnens bagkrop lidt mere mat. Behåringen "]
[null,null,null,null,null,null,null,null,null,null,null,null,null,null,null,null,null,null,null,null,null,null,null,null,null,null,null,null,null,null,null,null,null,null,7,"chlorus",7,"med lange hår (han), eller kortere hår (hun). Kroppen svagt grønligt skin-"]
[null,null,null,null,null,null,null,null,null,null,null,null,null,null,null,null,null,null,null,null,null,null,null,null,null,null,null,null,null,null,null,null,null,null,8,"cynocephala",8,"behåret. Scutellum med meget tynde børster (han), meget korte, ofte "]
[null,null,null,null,null,null,null,null,null,null,null,null,null,null,null,null,null,null,null,null,null,null,null,null,null,null,null,null,null,null,null,null,null,null,9,"flavipes",9,"hannen lange hår. Brystet og den smalle bagkrop meget kort lyst behåret,"]
[null,null,null,null,null,null,null,null,null,null,null,null,null,null,null,null,null,null,null,null,null,null,null,null,null,null,null,null,null,null," ",null,null,null,10,"fraterna",10,"tellum med børster, hunnens meget korte eller helt manglende. Bryst og"]
[null,null,null,null,null,null,null,null,null,null,null,null,null,null,null,null,null,null,null,null,null,null,null,null,null,null,null,null,null,null,null,null,null,null,11,"frontalis",11,"og lyse (hun). Scutellum med lange mørke børster (han), kun 4 sorte (hun)."]
[null,null,null,null,null,null,null,null,null,null,null,null,null,null,null,null,null,null,null,null,null,null,null,null,null,null,null,null,null,null,null,null,null,null,12,"gigantea",12,"mange tynde børster. Bryst og bagkrop sortskinnende. Bagkroppens under-"]
[null,null,null,null,null,null,null,null,null,null,null,null,null,null,null,null,null,null,null,null,null,null,null,null,null,null,null,null,null,null,null,null,null,null,13,"grossa",13,"rødgult behåret. Bagkrop med bleggule hår (han),  eller rødgule hår (hun)."]
[null,null,null,null,null,null,null,null,null,null,null,null,null,null,null,null,null,null,null,null,null,null,null,null,null,null,null,null,null,null,null,null,null,null,14,"illustrata",14,"børster, men med lange hår. Kroppen er Humlebi-lignende. Bagkroppen"]
[null,null,null,null,null,null,null,null,null,null,null,null,null,null,null,null,null,null,null,null,null,null,null,null,null,null,null,null,null,null,null,null,null,null,15,"impressa",15,"er kort hos hannen, meget kort hos hunnen. Scutellum med kraftige sorte "]
[null,null,null,null,null,null,null,null,null,null,null,null,null,null,null,null,null,null,null,null,null,null,null,null,null,null,null,null,null,null,null,null,null,null,16,"lasiopa   (=honesta)",16,"hår, især hunnen. Scutellums sorte børster kortere end scutellum,  især"]
[null,null,null,null,null,null,null,null,null,null,null,null,null,null,null,null,null,null,null,null,null,null,null,null,null,null,null,null,null,null,null,null,null,null,17,"latifrons  (=intonsa)",17,"med spredt meget kort lys behåring (han), helt uden hår (hun). Bryst med "]
[null,null,null,null,null,null,null,null,null,null,null,null,null,null,null,null,null,null,null,null,null,null,null,null,null,null,null,null,null,null,null,null,null,null,18,"longula",18,"kan være gule, hos hunnen også scutellums spids. Brystet skinnende med "]
[null,null,null,null,null,null,null,null,null,null,null,null,null,null,null,null,null,null,null,null,null,null,null,null,null,null,null,null,null,null,null,null,null,null,19,"mutabilis",19,"med ca.8 sorte børster. Brystet med lang opret lys og mørk behåring (han)"]
[null,null,null,null,null,null,null,null,null,null,null,null,null,null,null,null,null,null,null,null,null,null,null,null,null,null,null,null,null,null,null,null,null,null,20,"nigripes",20,"køn kraftigt punkteret og derfor ret mat. Behåringen sort med lange og "]
[null,null,null,null,null,null,null,null,null,null,null,null,null,null,null,null,null,null,null,null,null,null,null,null,null,null,null,null,null,null,null,null,null,null,21,"pagana",21,"Scutellum med lange tynde børster. Bryst og bagkrop skinnende,. hannens"]
[null,null,null,null,null,null,null,null,null,null,null,null,null,null,null,null,null,null,null,null,null,null,null,null,null,null,null,null,null,null,null,null,null,null,22,"proxima",22,"behårede. Scutellum med mange hårlignende sorte børster (han),  færre"]
[null,null,null,null,null,null,null,null,null,null,null,null,null,null,null,null,null,null,null,null,null,null,null,null,null,null,null,null,null,null,null,null,null,null,23,"pubera",23,"hår. Scutellum med 6-10 børster. Bryst og bagkrop bestøvet og med meget"]
[null,null,null,null,null,null,null,null,null,null,null,null,null,null,null,null,null,null,null,null,null,null,null,null,null,null,null,null,null,null,null,null,null,null,24,"rufimana ",24,"børster. Brystet med opret tæt og lang mørk behåring. Hunnens kortere,"]
[null,null,null,null,null,null,null,null,null,null,null,null,null,null,null,null,null,null,null,null,null,null,null,null,null,null,null,null,null,null,null,null,null,null,25,"scutellata",25,"Øjne uden hår. Scutellum med 6-8 lange børster. Hunnens scutellum med"]
[null,null,null,null,null,null,null,null,null,null,null,null,null,null,null,null,null,null,null,null,null,null,null,null,null,null,null,null,null,null,null,null,null,null,26,"soror",26,"færre hos hun, der har scutellums spids gul. Bagkroppens underside mere "]
[null,null,null,null,null,null,null,null,null,null,null,null,null,null,null,null,null,null,null,null,null,null,null,null,null,null,null,null,null,null,null,null,null,null,27,"urbana  (=praecox)",27,"lange, tynde hos han, færre hos hun. Bagkrop smal hos begge køn. Undersiden"]
[null,null,null,null,null,null,null,null,null,null,null,null,null,null,null,null,null,null,null,null,null,null,null,null,null,null,null,null,null,null,null,null,null,null,28,"uviformis",28,"Scutellum med tynde sorte børster (han), lyse (hun). Bryst med udstående"]
[null,null,null,null,null,null,null,null,null,null,null,null,null,null,null,null,null,null,null,null,null,null,null,null,null,null,null,null,null,null,null,null,null,null,29,"variabilis",29,"lange (han), færre og kortere (hun). Bagkrop smal (han), bredere (hun).  Un-"]
[null,null,null,null,null,null,null,null,null,null,null,null,null,null,null,null,null,null,null,null,null,null,null,null,null,null,null,null,null,null,null,null,null,null,30,"velutina",30,"vejende lyse hår (han), kortere og skrå (hun). Bagkrop ovel, undersiden "]
[null,null,null,null,null,null,null,null,null,null,null,null,null,null,null,null,null,null,null,null,null,null,null,null,null,null,null,null,null,null,null,null,null,null,31,"vernalis",31,"med lang, oftest lys behåring (han), kortere og skrå (hun). Scutellum med"]
[null,null,null,null,null,null,null,null,null,null,null,null,null,null,null,null,null,null,null,null,null,null,null,null,null,null,null,null,null,null,null,null,null,null,32,"vicina   (=nasutula)",32,"hår. Scutellum med ca. 10 børster (han), ca. 6 (hun). Brystets overside"]
[null,null,null,null,null,null,null,null,null,null,null,null,null,null,null,null,null,null,null,null,null,null,null,null,null,null,null,null,null,null,null,null,null,null,33,"vulpina",33,"Øjne med lang lys behåring. Scutellum med lange tynde børster, hunnens"]
[]
[null,null,null,null,null,null,null,null,null,null,null,null,null,null,null,null,null,null,null,null,null,null,null,null,null,null,null,null,null,null,null,null,null,4,1,"albipila",1,"Undersiden noget bestøvet. Hannens lår sorte, hunnens gule. Skinneben"]
[null,null,null,null,null,null,null,null,null,null,null,null,null,null,null,null,null,null,null,null,null,null,null,null,null,null,null,null,null,null,null,null,null,null,2,"albitarsis",2,"(hun). Ben sorte, men midterste led på for- og mellemskinneben lyse. Hos"]
[null,null,null,null,null,null,null,null,null,null,null,null,null,null,null,null,null,null,null,null,null,null,null,null,null,null,null,null,null,null,null,null,null,null,3,"antiqua",3,"Bryst og bagkrop skinnende, også bagkroppens underside. Hannens"]
[null,null,null,null,null,null,null,null,null,null,null,null,null,null,null,null,null,null,null,null,null,null,null,null,null,null,null,null,null,null,null,null,null,null,4,"bergenstammi",4,"sort. Lår sorte med gul spids. Skinneben med mørke ringe, utydelige på"]
[null,null,null,null,null,null,null,null,null,null,null,null,null,null,null,null,null,null,null,null,null,null,null,null,null,null,null,null,null,null,null,null,null,null,5,"canicularis",5,"(han), skrå (hun). Bagkropsunderside skinnende. Lår sorte med gul spids."]
[null,null,null,null,null,null,null,null,null,null,null,null,null,null,null,null,null,null,null,null,null,null,null,null,null,null,null,null,null,null,null,null,null,null,6,"carbonaria",6,"lys, lang (han), kortere og skrå (hun). Bagkroppen hos begge køn bredest "]
[null,null,null,null,null,null,null,null,null,null,null,null,null,null,null,null,null,null,null,null,null,null,null,null,null,null,null,null,null,null,null,null,null,null,7,"chlorus",7,"nende. Behåringen lang og lys (han), kort og skrå (hun). Bagkroppens"]
[null,null,null,null,null,null,null,null,null,null,null,null,null,null,null,null,null,null,null,null,null,null,null,null,null,null,null,null,null,null,null,null,null,null,8,"cynocephala",8,"gullige (hun). Bryst blåsort skinnende. Bagkrop (inkl. undersiden) sortskin-"]
[null,null,null,null,null,null,null,null,null,null,null,null,null,null,null,null,null,null,null,null,null,null,null,null,null,null,null,null,null,null,null,null,null,null,9,"flavipes",9,"hannens skrå, hunnens nedliggende. Lår delvis sorte (han), mest gule (hun)."]
[null,null,null,null,null,null,null,null,null,null,null,null,null,null,null,null,null,null,null,null,null,null,null,null,null,null,null,null,null,null,null,null,null,null,10,"fraterna",10,"bagkrop ret bred hos begge køn, gulligt behåret. Bagkroppens underside"]
[null,null,null,null,null,null,null,null,null,null,null,null,null,null,null,null,null,null,null,null,null,null,null,null,null,null,null,null,null,null,null,null,null,null,11,"frontalis",11,"Bryst med opret lang lys behåring (han), kort og opret (hun). Bagkrop "]
[null,null,null,null,null,null,null,null,null,null,null,null,null,null,null,null,null,null,null,null,null,null,null,null,null,null,null,null,null,null,null,null,null,null,12,"gigantea",12,"side bestøvet. Bryst med ret lange oprette mørke hår (han), kun lyse hår"]
[null,null,null,null,null,null,null,null,null,null,null,null,null,null,null,null,null,null,null,null,null,null,null,null,null,null,null,null,null,null,null,null,null,null,13,"grossa",13,"Bagkropsspidsen med sorte hår hos begge køn. Undersiden bestøvet. Lår"]
[null,null,null,null,null,null,null,null,null,null,null,null,null,null,null,null,null,null,null,null,null,null,null,null,null,null,null,null,null,null,null,null,null,null,14,"illustrata",14,"flerfarvet i gråt, sort og rødt. Undersiden er bestøvet. Benene er så godt"]
[null,null,null,null,null,null,null,null,null,null,null,null,null,null,null,null,null,null,null,null,null,null,null,null,null,null,null,null,null,null,null,null,null,null,15,"impressa",15,"børster. Hunnens kortere, dog med to meget lange.  Brystet og bagkroppen"]
[null,null,null,null,null,null,null,null,null,null,null,null,null,null,null,null,null,null,null,null,null,null,null,null,null,null,null,null,null,null,null,null,null,null,16,"lasiopa   (=honesta)",16,"hunnens. Brystets overside med tæt kort lys behåring. Bagkroppens under-"]
[null,null,null,null,null,null,null,null,null,null,null,null,null,null,null,null,null,null,null,null,null,null,null,null,null,null,null,null,null,null,null,null,null,null,17,"latifrons  (=intonsa)",17,"tæt opret lys behåring, hunnens kortere og skrå. Bagkrop ret smal, under-"]
[null,null,null,null,null,null,null,null,null,null,null,null,null,null,null,null,null,null,null,null,null,null,null,null,null,null,null,null,null,null,null,null,null,null,18,"longula",18,"brunlig opret behåring (han), kort nedliggende og lysere (hun)."]
[null,null,null,null,null,null,null,null,null,null,null,null,null,null,null,null,null,null,null,null,null,null,null,null,null,null,null,null,null,null,null,null,null,null,19,"mutabilis",19,"eller kort og skrå (hun). Bagkroppen smal hos begge køn, undersiden skin- "]
[null,null,null,null,null,null,null,null,null,null,null,null,null,null,null,null,null,null,null,null,null,null,null,null,null,null,null,null,null,null,null,null,null,null,20,"nigripes",20," korte hår. Hunnens kortere end hannens. Bagkroppens behåring grå og "]
[null,null,null,null,null,null,null,null,null,null,null,null,null,null,null,null,null,null,null,null,null,null,null,null,null,null,null,null,null,null,null,null,null,null,21,"pagana",21,"aflang og lyst behåret, hunnens oval  med skrå behåring. Lår sorte. Skinne-"]
[null,null,null,null,null,null,null,null,null,null,null,null,null,null,null,null,null,null,null,null,null,null,null,null,null,null,null,null,null,null,null,null,null,null,22,"proxima",22,"men kraftigere (hun). Bryst og bagkrop skinnende. Bagkroppens  underside"]
[null,null,null,null,null,null,null,null,null,null,null,null,null,null,null,null,null,null,null,null,null,null,null,null,null,null,null,null,null,null,null,null,null,null,23,"pubera",23,"tæt gulbrun behåring, hunnens kortere. Bagkroppens underside kraftigt"]
[null,null,null,null,null,null,null,null,null,null,null,null,null,null,null,null,null,null,null,null,null,null,null,null,null,null,null,null,null,null,null,null,null,null,24,"rufimana ",24,"Scutellum med tynde sorte børster (han), lyse (hun). Bryst med lang tæt "]
[null,null,null,null,null,null,null,null,null,null,null,null,null,null,null,null,null,null,null,null,null,null,null,null,null,null,null,null,null,null,null,null,null,null,25,"scutellata",25,"gul spids. Bryst skinnende sort med opret lys behåring (han), kortere skrå"]
[null,null,null,null,null,null,null,null,null,null,null,null,null,null,null,null,null,null,null,null,null,null,null,null,null,null,null,null,null,null,null,null,null,null,26,"soror",26,"eller mindre skinnende. Lår sorte med gul spids. Skinneben gule, bortset"]
[null,null,null,null,null,null,null,null,null,null,null,null,null,null,null,null,null,null,null,null,null,null,null,null,null,null,null,null,null,null,null,null,null,null,27,"urbana  (=praecox)",27,"skinnende. Lår sorte. Skinneben gule med smalle sorte ringe, hos hunnen"]
[null,null,null,null,null,null,null,null,null,null,null,null,null,null,null,null,null,null,null,null,null,null,null,null,null,null,null,null,null,null,null,null,null,null,28,"uviformis",28,"tæt lys behåring, hunnens kortere. Bagkropsunderside delvis bestøvet. Lår"]
[null,null,null,null,null,null,null,null,null,null,null,null,null,null,null,null,null,null,null,null,null,null,null,null,null,null,null,null,null,null,null,null,null,null,29,"variabilis",29,"dersiden skinnende. Sidebehåringen lang og lys. Ben sorte, hunnens måske"]
[null,null,null,null,null,null,null,null,null,null,null,null,null,null,null,null,null,null,null,null,null,null,null,null,null,null,null,null,null,null,null,null,null,null,30,"velutina",30,"kraftigt bestøvet. Lår sorte. Skinneben midt på med brede sorte ringe, bre-"]
[null,null,null,null,null,null,null,null,null,null,null,null,null,null,null,null,null,null,null,null,null,null,null,null,null,null,null,null,null,null,null,null,null,null,31,"vernalis",31,"børster, der hos hanner er  lange og utydelige, hos hunner kortere og sorte."]
[null,null,null,null,null,null,null,null,null,null,null,null,null,null,null,null,null,null,null,null,null,null,null,null,null,null,null,null,null,null,null,null,null,null,32,"vicina   (=nasutula)",32,"med både korte lyse og længere sorte hår (han), korte lyse og skrå (hun)."]
[null,null,null,null,null,null,null,null,null,null,null,null,null,null,null,null,null,null,null,null,null,null,null,null,null,null,null,null,null,null,null,null,null,null,33,"vulpina",33,"kortere. Bryst med metalglans. Behåringen opret, lang tæt og mørk (han),"]
[]
[null,null,null,null,null,null,null,null,null,null,null,null,null,null,null,null,null,null,null,null,null,null,null,null,null,null,null,null,null,null,null,null,null,5,1,"albipila",1,"hos begge køn gule. Fødder overvejende gule. Vinger klare. 9-11 mm."]
[null,null,null,null,null,null,null,null,null,null,null,null,null,null,null,null,null,null,null,null,null,null,null,null,null,null,null,null,null,null,null,null,null,null,2,"albitarsis",2,"hunner ofte mørkere, dog altid lyse på undersiden. Hannens vinger mørk-"]
[null,null,null,null,null,null,null,null,null,null,null,null,null,null,null,null,null,null,null,null,null,null,null,null,null,null,null,null,null,null,null,null,null,null,3,"antiqua",3,"bryst med tæt sort behåring, hunnens kortere og lysere. Vingerne hos"]
[null,null,null,null,null,null,null,null,null,null,null,null,null,null,null,null,null,null,null,null,null,null,null,null,null,null,null,null,null,null,null,null,null,null,4,"bergenstammi",4,"bagbenene. Fødder gule med sort spids, bagfødder dog mørkere. Hunnens"]
[null,null,null,null,null,null,null,null,null,null,null,null,null,null,null,null,null,null,null,null,null,null,null,null,null,null,null,null,null,null,null,null,null,null,5,"canicularis",5,"spids. Skinneben gule med sorte ringe, bagskinnebenene dog mest gule."]
[null,null,null,null,null,null,null,null,null,null,null,null,null,null,null,null,null,null,null,null,null,null,null,null,null,null,null,null,null,null,null,null,null,null,6,"carbonaria",6,"mellem 3. og 4. led. Ben mørke, kun skinneben brunlige ved basis og spids,"]
[null,null,null,null,null,null,null,null,null,null,null,null,null,null,null,null,null,null,null,null,null,null,null,null,null,null,null,null,null,null,null,null,null,null,7,"chlorus",7,"underside skinnende. Lår sorte. Skinneben gule med brede sorte ringe."]
[null,null,null,null,null,null,null,null,null,null,null,null,null,null,null,null,null,null,null,null,null,null,null,null,null,null,null,null,null,null,null,null,null,null,8,"cynocephala",8,"nende.Bryst med opret tæt lang, ofte lys, behåring (han), kort og nedlig-"]
[null,null,null,null,null,null,null,null,null,null,null,null,null,null,null,null,null,null,null,null,null,null,null,null,null,null,null,null,null,null,null,null,null,null,9,"flavipes",9,"Skinneben gule. Fødder gule med mørk spids. Bagfødder lidt mørkere."]
[null,null,null,null,null,null,null,null,null,null,null,null,null,null,null,null,null,null,null,null,null,null,null,null,null,null,null,null,null,null,null,null,null,null,10,"fraterna",10,"skinnende. Lår sorte med gul spids. Skinneben med svage mørke ringe, ba-"]
[null,null,null,null,null,null,null,null,null,null,null,null,null,null,null,null,null,null,null,null,null,null,null,null,null,null,null,null,null,null,null,null,null,null,11,"frontalis",11,"smal hos begge køn, undersiden noget bestøvet .Lår sorte med gul spids."]
[null,null,null,null,null,null,null,null,null,null,null,null,null,null,null,null,null,null,null,null,null,null,null,null,null,null,null,null,null,null,null,null,null,null,12,"gigantea",12,"(hun). Lår sorte med rød spids.Skinneben rødlige med brede sorte ringe,"]
[null,null,null,null,null,null,null,null,null,null,null,null,null,null,null,null,null,null,null,null,null,null,null,null,null,null,null,null,null,null,null,null,null,null,13,"grossa",13,"sorte. Skinneben gule eller med svage mørke ringe. Fødderne er mørke."]
[null,null,null,null,null,null,null,null,null,null,null,null,null,null,null,null,null,null,null,null,null,null,null,null,null,null,null,null,null,null,null,null,null,null,14,"illustrata",14,"som helt sorte. Vingerne har ved vingemærket en stor brun plet. Også"]
[null,null,null,null,null,null,null,null,null,null,null,null,null,null,null,null,null,null,null,null,null,null,null,null,null,null,null,null,null,null,null,null,null,null,15,"impressa",15,"skinnende. Også bagkroppens underside skinnende. Brystets sorte behå-"]
[null,null,null,null,null,null,null,null,null,null,null,null,null,null,null,null,null,null,null,null,null,null,null,null,null,null,null,null,null,null,null,null,null,null,16,"lasiopa   (=honesta)",16," svagt bestøvet hos hunner. Lår sorte med gul spids. Skinneben sorte med "]
[null,null,null,null,null,null,null,null,null,null,null,null,null,null,null,null,null,null,null,null,null,null,null,null,null,null,null,null,null,null,null,null,null,null,17,"latifrons  (=intonsa)",17,"siden bestøvet. Lår sorte med gul spids. Skinneben med mørke ringe"]
[null,null,null,null,null,null,null,null,null,null,null,null,null,null,null,null,null,null,null,null,null,null,null,null,null,null,null,null,null,null,null,null,null,null,18,"longula",18,"Bagkroppens underside skinnende. Lår sorte med gul spids. Skinneben"]
[null,null,null,null,null,null,null,null,null,null,null,null,null,null,null,null,null,null,null,null,null,null,null,null,null,null,null,null,null,null,null,null,null,null,19,"mutabilis",19,"nende. Lår sorte med gul spids. Skinneben gule ved basis, forreste to par "]
[null,null,null,null,null,null,null,null,null,null,null,null,null,null,null,null,null,null,null,null,null,null,null,null,null,null,null,null,null,null,null,null,null,null,20,"nigripes",20,"sort (han), lysere (hun). Undersiden skinnende. Benene er helt sorte. "]
[null,null,null,null,null,null,null,null,null,null,null,null,null,null,null,null,null,null,null,null,null,null,null,null,null,null,null,null,null,null,null,null,null,null,21,"pagana",21,"ben gule med smalle sorte ringe. Fødder overvejende gule, sorte yderst."]
[null,null,null,null,null,null,null,null,null,null,null,null,null,null,null,null,null,null,null,null,null,null,null,null,null,null,null,null,null,null,null,null,null,null,22,"proxima",22,"skinnende. Hunnens bagkrop med grå  hårtvæbånd. Lår sorte med brune"]
[null,null,null,null,null,null,null,null,null,null,null,null,null,null,null,null,null,null,null,null,null,null,null,null,null,null,null,null,null,null,null,null,null,null,23,"pubera",23,"bestøvet. Ben helt sorte. Vinger noget gultonede ved basis, lidt mørkere "]
[null,null,null,null,null,null,null,null,null,null,null,null,null,null,null,null,null,null,null,null,null,null,null,null,null,null,null,null,null,null,null,null,null,null,24,"rufimana ",24,"underside noget bestøvet. Lår sorte med lidt brunere spids. Skinneben"]
[null,null,null,null,null,null,null,null,null,null,null,null,null,null,null,null,null,null,null,null,null,null,null,null,null,null,null,null,null,null,null,null,null,null,25,"scutellata",25,"(hun). Bagkroppens underside skinnende. Lår mørke med gul spids."]
[null,null,null,null,null,null,null,null,null,null,null,null,null,null,null,null,null,null,null,null,null,null,null,null,null,null,null,null,null,null,null,null,null,null,26,"soror",26,"fra bagerste, der har mørk ring. Fødder mest gule.Vinger klare.  8-10 mm. "]
[null,null,null,null,null,null,null,null,null,null,null,null,null,null,null,null,null,null,null,null,null,null,null,null,null,null,null,null,null,null,null,null,null,null,27,"urbana  (=praecox)",27,"næsten helt gule. Fødder næsten helt gule. Kløerne gule med sort spids."]
[null,null,null,null,null,null,null,null,null,null,null,null,null,null,null,null,null,null,null,null,null,null,null,null,null,null,null,null,null,null,null,null,null,null,28,"uviformis",28,"sorte med gul spids. Skinneben gule, måske svage mørke ringe.  Fødder gu-"]
[null,null,null,null,null,null,null,null,null,null,null,null,null,null,null,null,null,null,null,null,null,null,null,null,null,null,null,null,null,null,null,null,null,null,29,"variabilis",29," brune ved knæ og skinnebensspids. Vingerne mørktonede, især hos hannen."]
[null,null,null,null,null,null,null,null,null,null,null,null,null,null,null,null,null,null,null,null,null,null,null,null,null,null,null,null,null,null,null,null,null,null,30,"velutina",30,"dest på bagskinneben. Fødderne overvejende mørke, men i hver fald"]
[null,null,null,null,null,null,null,null,null,null,null,null,null,null,null,null,null,null,null,null,null,null,null,null,null,null,null,null,null,null,null,null,null,null,31,"vernalis",31,"Bagkroppen smal (han), bred (hun). Undersiden er skinnende. Lår sorte."]
[null,null,null,null,null,null,null,null,null,null,null,null,null,null,null,null,null,null,null,null,null,null,null,null,null,null,null,null,null,null,null,null,null,null,32,"vicina   (=nasutula)",32,"Bagkroppens underside er skinnende. Ben helt sorte. Vinger klare. "]
[null,null,null,null,null,null,null,null,null,null,null,null,null,null,null,null,null,null,null,null,null,null,null,null,null,null,null,null,null,null,null,null,null,null,33,"vulpina",33,"kortere, lysere og skrå (hun).  Lår sorte med brun spids. Skinneben og"]
[]
[null,null,null,null,null,null,null,null,null,null,null,null,null,null,null,null,null,null,null,null,null,null,null,null,null,null,null,null,null,null,null,null,null,6,1,"albipila",1,"Ret alm. forårsart 10.III-20:V.  Den mindre, meget sjældne  C. nebulosa"]
[null,null,null,null,null,null,null,null,null,null,null,null,null,null,null,null,null,null,null,null,null,null,null,null,null,null,null,null,null,null,null,null,null,null,2,"albitarsis",2,"tonede, hunnens mere gultonede. 7-11 mm. Almindelig. 1.V. - 10.VIII."]
[null,null,null,null,null,null,null,null,null,null,null,null,null,null,null,null,null,null,null,null,null,null,null,null,null,null,null,null,null,null,null,null,null,null,3,"antiqua",3,"hannen bruntonede. Hunnens vinger mere gultonede. 6-8 mm. Ret"]
[null,null,null,null,null,null,null,null,null,null,null,null,null,null,null,null,null,null,null,null,null,null,null,null,null,null,null,null,null,null,null,null,null,null,4,"bergenstammi",4,"ben noget lysere. Baglår har lang sort behåring yderst. Vinger svagt"]
[null,null,null,null,null,null,null,null,null,null,null,null,null,null,null,null,null,null,null,null,null,null,null,null,null,null,null,null,null,null,null,null,null,null,5,"canicularis",5,"Fødderne er gule. Vingerne klare. 12-15 mm. Sjælden. Findes kun i"]
[null,null,null,null,null,null,null,null,null,null,null,null,null,null,null,null,null,null,null,null,null,null,null,null,null,null,null,null,null,null,null,null,null,null,6,"carbonaria",6,"hunnens dog lidt lysere, også på de forreste fodpar. Vinger meget lange,"]
[null,null,null,null,null,null,null,null,null,null,null,null,null,null,null,null,null,null,null,null,null,null,null,null,null,null,null,null,null,null,null,null,null,null,7,"chlorus",7,"Fødderne overvejende mørke. Vingerne gullige, især inderst. 10-11 mm."]
[null,null,null,null,null,null,null,null,null,null,null,null,null,null,null,null,null,null,null,null,null,null,null,null,null,null,null,null,null,null,null,null,null,null,8,"cynocephala",8,"gende (hun). Lår sorte, gul spids. Skinneben med sorte ringe. Forreste to"]
[null,null,null,null,null,null,null,null,null,null,null,null,null,null,null,null,null,null,null,null,null,null,null,null,null,null,null,null,null,null,null,null,null,null,9,"flavipes",9,"Vinger gultonede. (7)10-12 mm. Meget sjælden. Kun fundet i Nordsjæl-"]
[null,null,null,null,null,null,null,null,null,null,null,null,null,null,null,null,null,null,null,null,null,null,null,null,null,null,null,null,null,null,null,null,null,null,10,"fraterna",10,"gerste ofte helt gule (han), alle hunnens  oftest helt gule. Bagfødder mørke "]
[null,null,null,null,null,null,null,null,null,null,null,null,null,null,null,null,null,null,null,null,null,null,null,null,null,null,null,null,null,null,null,null,null,null,11,"frontalis",11,"Skinneben med sorte ringe i ydre halvdel, bagerste mørkest. Fødder brunsorte."]
[null,null,null,null,null,null,null,null,null,null,null,null,null,null,null,null,null,null,null,null,null,null,null,null,null,null,null,null,null,null,null,null,null,null,12,"gigantea",12,"bagerste mørkest. Fødder sorte.  Hunnensben  lidt lysere, også mellem-"]
[null,null,null,null,null,null,null,null,null,null,null,null,null,null,null,null,null,null,null,null,null,null,null,null,null,null,null,null,null,null,null,null,null,null,13,"grossa",13,"Vingerne er gullige ved basis, længere ude mere mørktonede."]
[null,null,null,null,null,null,null,null,null,null,null,null,null,null,null,null,null,null,null,null,null,null,null,null,null,null,null,null,null,null,null,null,null,null,14,"illustrata",14,"vingforkanten noget brunlig.  9-12 mm.  Sjælden. 10.VI-10.IX."]
[null,null,null,null,null,null,null,null,null,null,null,null,null,null,null,null,null,null,null,null,null,null,null,null,null,null,null,null,null,null,null,null,null,null,15,"impressa",15,"ring opret (han), skrå (hun). Benene sorte, knæene måske lidt brune. "]
[null,null,null,null,null,null,null,null,null,null,null,null,null,null,null,null,null,null,null,null,null,null,null,null,null,null,null,null,null,null,null,null,null,null,16,"lasiopa   (=honesta)",16," brungul basis, bagerste helt sorte. Fødder helt sorte. Vinger svagt brunto-"]
[null,null,null,null,null,null,null,null,null,null,null,null,null,null,null,null,null,null,null,null,null,null,null,null,null,null,null,null,null,null,null,null,null,null,17,"latifrons  (=intonsa)",17,"under midten, især bagerste. Fødder mørke, især bagfødder. Vinger svagt brun-"]
[null,null,null,null,null,null,null,null,null,null,null,null,null,null,null,null,null,null,null,null,null,null,null,null,null,null,null,null,null,null,null,null,null,null,18,"longula",18,"Skinneben med brede mørke ringe yderst. Fødderne mest gule. Vinger"]
[null,null,null,null,null,null,null,null,null,null,null,null,null,null,null,null,null,null,null,null,null,null,null,null,null,null,null,null,null,null,null,null,null,null,19,"mutabilis",19,"også ved spidsen. Bagfødder sorte, de øvrige har 2.-4. led gule. Vinger"]
[null,null,null,null,null,null,null,null,null,null,null,null,null,null,null,null,null,null,null,null,null,null,null,null,null,null,null,null,null,null,null,null,null,null,20,"nigripes",20,"Vingerne hos begge køn tydeligt formørkede. 8-10 mm. Ikke almindelig. "]
[null,null,null,null,null,null,null,null,null,null,null,null,null,null,null,null,null,null,null,null,null,null,null,null,null,null,null,null,null,null,null,null,null,null,21,"pagana",21,"Hannens første bagfodsled opsvulmet, hunnens 2. og 3. led brede. Vinger"]
[null,null,null,null,null,null,null,null,null,null,null,null,null,null,null,null,null,null,null,null,null,null,null,null,null,null,null,null,null,null,null,null,null,null,22,"proxima",22,"spidser. Skinneben med brede mørke ringe, bagskinneben mørkest. Fød-"]
[null,null,null,null,null,null,null,null,null,null,null,null,null,null,null,null,null,null,null,null,null,null,null,null,null,null,null,null,null,null,null,null,null,null,23,"pubera",23,"udadtil. 6-8. mm. Ikke almindelig. 20.IV - 20.VI."]
[null,null,null,null,null,null,null,null,null,null,null,null,null,null,null,null,null,null,null,null,null,null,null,null,null,null,null,null,null,null,null,null,null,null,24,"rufimana ",24,"sorte med brungul basis og spids. Fødder sorte, inderste led mere brune."]
[null,null,null,null,null,null,null,null,null,null,null,null,null,null,null,null,null,null,null,null,null,null,null,null,null,null,null,null,null,null,null,null,null,null,25,"scutellata",25,"Skinneben med brede sorte ringe. Fødderne delvis gule.  Vinger svagt"]
[null,null,null,null,null,null,null,null,null,null,null,null,null,null,null,null,null,null,null,null,null,null,null,null,null,null,null,null,null,null,null,null,null,null,26,"soror",26,"Meget sjælden. Kun et enkelt gammelt fund fra 1908. 1.VI. - 31.VIII."]
[null,null,null,null,null,null,null,null,null,null,null,null,null,null,null,null,null,null,null,null,null,null,null,null,null,null,null,null,null,null,null,null,null,null,27,"urbana  (=praecox)",27,"Hvis de er helt sorte er det C. psilophthalma. Vingerne klare. 6-7 mm. Almin-"]
[null,null,null,null,null,null,null,null,null,null,null,null,null,null,null,null,null,null,null,null,null,null,null,null,null,null,null,null,null,null,null,null,null,null,28,"uviformis",28,"le med yderste led sorte, sjældent mørkere. Vinger klare. 7-9 mm. Meget "]
[null,null,null,null,null,null,null,null,null,null,null,null,null,null,null,null,null,null,null,null,null,null,null,null,null,null,null,null,null,null,null,null,null,null,29,"variabilis",29,"10-12 mm.  Ret alm. 1.V-31.VII.   BEM: C.nigripes har ubehårede øjne. "]
[null,null,null,null,null,null,null,null,null,null,null,null,null,null,null,null,null,null,null,null,null,null,null,null,null,null,null,null,null,null,null,null,null,null,30,"velutina",30,"for-og mellemfødder mere gule. Vinger svagt bruntonede (han), klare (hun)."]
[null,null,null,null,null,null,null,null,null,null,null,null,null,null,null,null,null,null,null,null,null,null,null,null,null,null,null,null,null,null,null,null,null,null,31,"vernalis",31,"Alle skinneben med  sorte ringe. For- og mellemfødder ikke helt sorte."]
[null,null,null,null,null,null,null,null,null,null,null,null,null,null,null,null,null,null,null,null,null,null,null,null,null,null,null,null,null,null,null,null,null,null,32,"vicina   (=nasutula)",32,"6-8 mm. Ikke almindelig. 20.V.- 10.VIII."]
[null,null,null,null,null,null,null,null,null,null,null,null,null,null,null,null,null,null,null,null,null,null,null,null,null,null,null,null,null,null,null,null,null,null,33,"vulpina",33,"i hvert fald bagfødder sorte. Bagkroppens underside bestøvet. Vinger klare."]
[]
[null,null,null,null,null,null,null,null,null,null,null,null,null,null,null,null,null,null,null,null,null,null,null,null,null,null,null,null,null,null,null,null,null,7,1,"albipila",1,"ligner og er vanskelig at bestemme. Se litteraturen."]
[null,null,null,null,null,null,null,null,null,null,null,null,null,null,null,null,null,null,null,null,null,null,null,null,null,null,null,null,null,null,null,null,null,null,2,"albitarsis",2,"Hvis yderste forfodsled ikke har parallelle sider, er det C. ranunculi."]
[null,null,null,null,null,null,null,null,null,null,null,null,null,null,null,null,null,null,null,null,null,null,null,null,null,null,null,null,null,null,null,null,null,null,3,"antiqua",3,"sjælden. 20.IV-20.V."]
[null,null,null,null,null,null,null,null,null,null,null,null,null,null,null,null,null,null,null,null,null,null,null,null,null,null,null,null,null,null,null,null,null,null,4,"bergenstammi",4,"gultonede. 9-12 mm. Ret sjælden. 1.V. - 30.IX."]
[null,null,null,null,null,null,null,null,null,null,null,null,null,null,null,null,null,null,null,null,null,null,null,null,null,null,null,null,null,null,null,null,null,null,5,"canicularis",5,"Øst- og Sydøstjylland. 20.VII - 20.X."]
[null,null,null,null,null,null,null,null,null,null,null,null,null,null,null,null,null,null,null,null,null,null,null,null,null,null,null,null,null,null,null,null,null,null,6,"carbonaria",6,"mørke i ydre halvdel. 9-11 mm. Ikke almindelig. 10.v. - 30.IX."]
[null,null,null,null,null,null,null,null,null,null,null,null,null,null,null,null,null,null,null,null,null,null,null,null,null,null,null,null,null,null,null,null,null,null,7,"chlorus",7,"Ret almindelig. 1.IV.-10.VI."]
[null,null,null,null,null,null,null,null,null,null,null,null,null,null,null,null,null,null,null,null,null,null,null,null,null,null,null,null,null,null,null,null,null,null,8,"cynocephala",8,"fodpar gule inderst. Vinger korte, mørkere yderst. 8-9 mm. Sj. 20.v.-10.IX."]
[null,null,null,null,null,null,null,null,null,null,null,null,null,null,null,null,null,null,null,null,null,null,null,null,null,null,null,null,null,null,null,null,null,null,9,"flavipes",9,"land, f. eks. Tisvildeleje, sti langs stejlepladsen. 20.IV - 10.VI."]
[null,null,null,null,null,null,null,null,null,null,null,null,null,null,null,null,null,null,null,null,null,null,null,null,null,null,null,null,null,null,null,null,null,null,10,"fraterna",10,"øverst, fødder ellers mere eller mindre lyse. 9-10 mm. Ret alm. 1.V. - 30.VI."]
[null,null,null,null,null,null,null,null,null,null,null,null,null,null,null,null,null,null,null,null,null,null,null,null,null,null,null,null,null,null,null,null,null,null,11,"frontalis",11,"Vinger klare. 7-9 mm. Sjælden og lokal (Himmerland). 15.IV - 30.VI.."]
[null,null,null,null,null,null,null,null,null,null,null,null,null,null,null,null,null,null,null,null,null,null,null,null,null,null,null,null,null,null,null,null,null,null,12,"gigantea",12,"fødder. Vinger ret bruntonede, især hannens. 8-10. mm. Ret alm. 1.V.-10.VII."]
[null,null,null,null,null,null,null,null,null,null,null,null,null,null,null,null,null,null,null,null,null,null,null,null,null,null,null,null,null,null,null,null,null,null,13,"grossa",13,"Bem.: C. albipila og C. chloris har gule følehorn. C. albipila-hunnen gule lår."]
[null,null,null,null,null,null,null,null,null,null,null,null,null,null,null,null,null,null,null,null,null,null,null,null,null,null,null,null,null,null,null,null,null,null,14,"illustrata",14]
[null,null,null,null,null,null,null,null,null,null,null,null,null,null,null,null,null,null,null,null,null,null,null,null,null,null,null,null,null,null,null,null,null,null,15,"impressa",15,"Vingbasis kraftigt gultonet.  6-8 mm.  Almindelig. 10.V - 20.IX."]
[null,null,null,null,null,null,null,null,null,null,null,null,null,null,null,null,null,null,null,null,null,null,null,null,null,null,null,null,null,null,null,null,null,null,16,"lasiopa   (=honesta)",16,"nede. 8-10 mm. Ikke almindelig. 1.V. - 30.VI."]
[null,null,null,null,null,null,null,null,null,null,null,null,null,null,null,null,null,null,null,null,null,null,null,null,null,null,null,null,null,null,null,null,null,null,17,"latifrons  (=intonsa)",17,"bruntonede. 6-9 mm. Ikke alm. 10.V.-31.VIII, flest i august."]
[null,null,null,null,null,null,null,null,null,null,null,null,null,null,null,null,null,null,null,null,null,null,null,null,null,null,null,null,null,null,null,null,null,null,18,"longula",18,"noget gullige. 7-9 mm. Ret sjælden. 10.VII - 30.IX."]
[null,null,null,null,null,null,null,null,null,null,null,null,null,null,null,null,null,null,null,null,null,null,null,null,null,null,null,null,null,null,null,null,null,null,19,"mutabilis",19,"lidt mørktonede. 6-9 mm. Ret almindelig. 1.VI - 31.VIII."]
[null,null,null,null,null,null,null,null,null,null,null,null,null,null,null,null,null,null,null,null,null,null,null,null,null,null,null,null,null,null,null,null,null,null,20,"nigripes",20," 1.V. - 10.VII."]
[null,null,null,null,null,null,null,null,null,null,null,null,null,null,null,null,null,null,null,null,null,null,null,null,null,null,null,null,null,null,null,null,null,null,21,"pagana",21,"svagt gultonede. 6-8 mm. Almindelig. 1.IV.- 10.IX."]
[null,null,null,null,null,null,null,null,null,null,null,null,null,null,null,null,null,null,null,null,null,null,null,null,null,null,null,null,null,null,null,null,null,null,22,"proxima",22,"der mest mørke.  Vinger svagt bruntonede. 8-9 mm. Ikke alm. 10.V. 10.IX."]
[null,null,null,null,null,null,null,null,null,null,null,null,null,null,null,null,null,null,null,null,null,null,null,null,null,null,null,null,null,null,null,null,null,null,23,"pubera",23]
[null,null,null,null,null,null,null,null,null,null,null,null,null,null,null,null,null,null,null,null,null,null,null,null,null,null,null,null,null,null,null,null,null,null,24,"rufimana ",24,"8-11 mm. Ret almindelig. 20.IV - 20.VI."]
[null,null,null,null,null,null,null,null,null,null,null,null,null,null,null,null,null,null,null,null,null,null,null,null,null,null,null,null,null,null,null,null,null,null,25,"scutellata",25,"bruntonede. (7)8-10 mm. Ret almindelig. 1.VII. - 10.IX."]
[null,null,null,null,null,null,null,null,null,null,null,null,null,null,null,null,null,null,null,null,null,null,null,null,null,null,null,null,null,null,null,null,null,null,26,"soror",26]
[null,null,null,null,null,null,null,null,null,null,null,null,null,null,null,null,null,null,null,null,null,null,null,null,null,null,null,null,null,null,null,null,null,null,27,"urbana  (=praecox)",27,"delig. Lille skinnende forårsart, 10.IV-10.VI."]
[null,null,null,null,null,null,null,null,null,null,null,null,null,null,null,null,null,null,null,null,null,null,null,null,null,null,null,null,null,null,null,null,null,null,28,"uviformis",28,"sjælden. 10.V. - 31.V. Kun når kabbeleje blomstrer."]
[null,null,null,null,null,null,null,null,null,null,null,null,null,null,null,null,null,null,null,null,null,null,null,null,null,null,null,null,null,null,null,null,null,null,29,"variabilis",29,"C. impressa har tydeligt gule vingebaser. C. albitarsis lysere forfødder. "]
[null,null,null,null,null,null,null,null,null,null,null,null,null,null,null,null,null,null,null,null,null,null,null,null,null,null,null,null,null,null,null,null,null,null,30,"velutina",30,"7-9 mm. Ret almindelig. 20.Vi. - 31.VIII. "]
[null,null,null,null,null,null,null,null,null,null,null,null,null,null,null,null,null,null,null,null,null,null,null,null,null,null,null,null,null,null,null,null,null,null,31,"vernalis",31,"Vinger klare. 6-7 mm.  Almindelig. 10.V-!0.X."]
[null,null,null,null,null,null,null,null,null,null,null,null,null,null,null,null,null,null,null,null,null,null,null,null,null,null,null,null,null,null,null,null,null,null,32,"vicina   (=nasutula)",32]
[null,null,null,null,null,null,null,null,null,null,null,null,null,null,null,null,null,null,null,null,null,null,null,null,null,null,null,null,null,null,null,null,null,null,33,"vulpina",33,"8-10 mm. Sjælden. Sydligs Østjylland og Fyn. 10.V. - 30.VIII."]

{"sheet":"Ark2","index":1,"n_rows":34,"n_cols":3,"rows_kept":34,"cut":false,"hidden":true,"merged":[]}
[null,1,"Ark2!A1"]
[null,2,"Ark2!A2"]
[null,3,"Ark2!A3"]
[null,4,"Ark2!A4"]
[null,5,"Ark2!A5"]
[null,6,"Ark2!A6"]
[null,7,"Ark2!A7"]
[" ",8,"Ark2!A8"]
[null,9,"Ark2!A9"]
[null,10,"Ark2!A10"]
[null,11,"Ark2!A11"]
[null,12,"Ark2!A12"]
[null,13,"Ark2!A13"]
[null,14,"Ark2!A14"]
[null,15,"Ark2!A15"]
[null,16,"Ark2!A16"]
[null,17,"Ark2!A17"]
[null,18,"Ark2!A18"]
[null,19,"Ark2!A19"]
[null,20,"Ark2!A20"]
[null,21,"Ark2!A21"]
[null,22,"Ark2!A22"]
[null,23,"Ark2!A23"]
[null,24,"Ark2!A24"]
[null,25,"Ark2!A25"]
[null,26,"Ark2!A26"]
[null,27,"Ark2!A27"]
[null,28,"Ark2!A28"]
[null,29,"Ark2!A29"]
[null,30,"Ark2!A30"]
[null,31,"Ark2!A31"]
[null,32,"Ark2!A32"]
[null,33,"Ark2!A33"]
[null,34,"Ark2!A34"]

{"sheet":"Ark3","index":2,"n_rows":34,"n_cols":8,"rows_kept":34,"cut":false,"hidden":true,"merged":[]}
[null,1,"Ark3!A1","albipila",null,1,"Ark3!E1","Børster"]
[null,2,"Ark3!A2","albitarsis",null,2,"Ark3!E2","hår"]
[null,3,"Ark3!A3","antigqua",null,3,"Ark3!E3","øjne med"]
[null,4,"Ark3!A4","bergenstammi",null,4,"Ark3!E4","øjne uden"]
[null,5,"Ark3!A5","canicularis",null,5,"Ark3!E5","ant mørke "]
[null,6,"Ark3!A6","carbonaria",null,6,"Ark3!E6","rødbrune"]
[null,7,"Ark3!A7","chlorus",null,7,"Ark3!E7","gule"]
[null,8,"Ark3!A8","cynocephala",null,8,"Ark3!E8","lår sorte"]
[null,9,"Ark3!A9","flavipes",null,9,"Ark3!E9","gule spidser"]
[null,10,"Ark3!A10","fraterna ",null,10,"Ark3!E10","mere gule"]
[null,11,"Ark3!A11","frontalis",null,11,"Ark3!E11","gule"]
[null,12,"Ark3!A12","gigantea",null,12,"Ark3!E12","sk.ben sorte"]
[null,13,"Ark3!A13","grossa",null,13,"Ark3!E13","mest sorte"]
[null,14,"Ark3!A14","illustrata",null,14,"Ark3!E14","svagr pletter"]
[null,15,"Ark3!A15","impressa",null,15,"Ark3!E15","Helt gule"]
[null,16,"Ark3!A16","laiopa",null,16,"Ark3!E16","fø'dder mørke"]
[null,17,"Ark3!A17","latifrons",null,17,"Ark3!E17","gule/sorte"]
[null,18,"Ark3!A18","longula",null,18,"Ark3!E18","gule"]
[null,19,"Ark3!A19","mutabilis",null,19,"Ark3!E19","sct.gul"]
[null,20,"Ark3!A20","nigripes",null,20,"Ark3!E20","sct sort"]
[null,21,"Ark3!A21","pagana",null,21,"Ark3!E21","vinger mørke"]
[null,22,"Ark3!A22","proxima",null,22,"Ark3!E22","vinger lyse"]
[null,23,"Ark3!A23","pubera",null,23,"Ark3!E23","Ant. Lange"]
[null,24,"Ark3!A24","rufimana",null,24,"Ark3!E24","Ant korte"]
[null,25,"Ark3!A25","scutellata",null,25,"Ark3!E25","Sølvpletter"]
[null,26,"Ark3!A26","soror",null,26,"Ark3!E26","ingen plet"]
[null,27,"Ark3!A27","urbana",null,27,"Ark3!E27","Udstående hår ved mundkant hår"]
[null,28,"Ark3!A28","uvifromis ",null,28,"Ark3!E28","Ans. U. hår"]
[null,29,"Ark3!A29","variabilis",null,29,"Ark3!E29","Bug bestøvet"]
[null,30,"Ark3!A30","velutina ",null,30,"Ark3!E30","Ikke bestøvet"]
[null,31,"Ark3!A31","vernalis"]
[null,32,"Ark3!A32","vicina"]
[null,33,"Ark3!A33","vulpina "]
[null,34,"Ark3!A34","fasciata"]